Workbook

Sheet Splash (hidden)
B3: THIS EXCEL WORKBOOK WILL ONLY FUNCTION IF MACROS ARE ENABLED
B5: YOU MAY NEED TO LOWER YOUR MACRO SECURITY SETTING
B7: [TOOLS]-[OPTIONS]-[SECURITY]-MACRO SECURITY]

Sheet Analyse (hidden)
A2: Number of nights done by each anaesthetist
B5: =Worksheet!L3 -> ALL NIGHTS | F5: =Worksheet!P3 -> ICU | J5: =Worksheet!T3 -> AGB | N5: =Worksheet!X3 -> BHS | R5: AGB | S5: =Worksheet!AB3 -> BACKUP | W5: ELECTIVE
B6: =Worksheet!L4 -> Mon-Thu | C6: =Worksheet!M4 -> Fri | D6: =Worksheet!N4 -> Sat+Sun | F6: =Worksheet!P4 -> Mon-Thu | G6: =Worksheet!Q4 -> Fri | H6: =Worksheet!R4 -> Sat+Sun | J6: =Worksheet!T4 -> Mon-Thu | K6: =Worksheet!U4 -> Fri | L6: =Worksheet!V4 -> Sat+Sun | N6: =Worksheet!X4 -> Mon-Thu | O6: =Worksheet!Y4 -> Fri | P6: =Worksheet!Z4 -> Sat OR Sun | R6: Thurs | S6: =Worksheet!AB4 -> Mon-Thu | T6: =Worksheet!AC4 -> Fri | U6: =Worksheet!AD4 -> Sat+Sun | W6: SATURDAY
A7: =Worksheet!K5 -> PJC | B7: =Worksheet!L5 -> 16 | C7: =Worksheet!M5 -> 5 | D7: =Worksheet!N5 -> 5 | F7: =Worksheet!P5 -> 0 | G7: =Worksheet!Q5 -> 0 | H7: =Worksheet!R5 -> 0 | J7: =Worksheet!T5 -> 11 | K7: =Worksheet!U5 -> 4 | L7: =Worksheet!V5 -> 4 | N7: =Worksheet!X5 -> 5 | O7: =Worksheet!Y5 -> 1 | P7: =Worksheet!Z5 -> 3 | Q7: =A7 -> PJC | R7: =Worksheet!W5 -> 3 | S7: =Worksheet!AB5 -> 10 | T7: =Worksheet!AC5 -> 4 | U7: =Worksheet!AD5 -> 4 | W7: =Worksheet!AG5 -> 0
A8: =Worksheet!K6 -> RAC | B8: =Worksheet!L6 -> 17 | C8: =Worksheet!M6 -> 4 | D8: =Worksheet!N6 -> 4.5 | F8: =Worksheet!P6 -> 0 | G8: =Worksheet!Q6 -> 0 | H8: =Worksheet!R6 -> 0 | J8: =Worksheet!T6 -> 13 | K8: =Worksheet!U6 -> 3 | L8: =Worksheet!V6 -> 3 | N8: =Worksheet!X6 -> 4 | O8: =Worksheet!Y6 -> 1 | P8: =Worksheet!Z6 -> 3 | Q8: =A8 -> RAC | R8: =Worksheet!W6 -> 3 | S8: =Worksheet!AB6 -> 12 | T8: =Worksheet!AC6 -> 4 | U8: =Worksheet!AD6 -> 4 | W8: =Worksheet!AG6 -> 0
A9: =Worksheet!K7 -> REC | B9: =Worksheet!L7 -> 12 | C9: =Worksheet!M7 -> 3 | D9: =Worksheet!N7 -> 3.5 | F9: =Worksheet!P7 -> 0 | G9: =Worksheet!Q7 -> 0 | H9: =Worksheet!R7 -> 0 | J9: =Worksheet!T7 -> 10 | K9: =Worksheet!U7 -> 3 | L9: =Worksheet!V7 -> 3 | N9: =Worksheet!X7 -> 2 | O9: =Worksheet!Y7 -> 0 | P9: =Worksheet!Z7 -> 1 | Q9: REC | R9: =Worksheet!W7 -> 4 | S9: =Worksheet!AB7 -> 10 | T9: =Worksheet!AC7 -> 2 | U9: =Worksheet!AD7 -> 2 | W9: =Worksheet!AG7 -> 0
A10: =Worksheet!K8 -> JGE | B10: =Worksheet!L8 -> 19 | C10: =Worksheet!M8 -> 5 | D10: =Worksheet!N8 -> 4.5 | F10: =Worksheet!P8 -> 0 | G10: =Worksheet!Q8 -> 0 | H10: =Worksheet!R8 -> 0 | J10: =Worksheet!T8 -> 14 | K10: =Worksheet!U8 -> 3 | L10: =Worksheet!V8 -> 3 | N10: =Worksheet!X8 -> 5 | O10: =Worksheet!Y8 -> 2 | P10: =Worksheet!Z8 -> 3 | Q10: JGE | R10: =Worksheet!W8 -> 5 | S10: =Worksheet!AB8 -> 13 | T10: =Worksheet!AC8 -> 3 | U10: =Worksheet!AD8 -> 2.5 | W10: =Worksheet!AG8 -> 0
A11: =Worksheet!K9 -> SPF | B11: =Worksheet!L9 -> 13 | C11: =Worksheet!M9 -> 3 | D11: =Worksheet!N9 -> 4 | F11: =Worksheet!P9 -> 0 | G11: =Worksheet!Q9 -> 0 | H11: =Worksheet!R9 -> 0 | J11: =Worksheet!T9 -> 13 | K11: =Worksheet!U9 -> 3 | L11: =Worksheet!V9 -> 4 | N11: =Worksheet!X9 -> 0 | O11: =Worksheet!Y9 -> 0 | P11: =Worksheet!Z9 -> 0 | Q11: SPF | R11: =Worksheet!W9 -> 4 | S11: =Worksheet!AB9 -> 13 | T11: =Worksheet!AC9 -> 2 | U11: =Worksheet!AD9 -> 4.5 | W11: =Worksheet!AG9 -> 0
A12: =Worksheet!K10 -> GAH | B12: =Worksheet!L10 -> 13 | C12: =Worksheet!M10 -> 3 | D12: =Worksheet!N10 -> 3 | F12: =Worksheet!P10 -> 0 | G12: =Worksheet!Q10 -> 0 | H12: =Worksheet!R10 -> 0 | J12: =Worksheet!T10 -> 13 | K12: =Worksheet!U10 -> 3 | L12: =Worksheet!V10 -> 3 | N12: =Worksheet!X10 -> 0 | O12: =Worksheet!Y10 -> 0 | P12: =Worksheet!Z10 -> 0 | Q12: GAH | R12: =Worksheet!W10 -> 0 | S12: =Worksheet!AB10 -> 14 | T12: =Worksheet!AC10 -> 5 | U12: =Worksheet!AD10 -> 4 | W12: =Worksheet!AG10 -> 0
A13: =Worksheet!K11 -> DJM | B13: =Worksheet!L11 -> 20 | C13: =Worksheet!M11 -> 5 | D13: =Worksheet!N11 -> 4 | F13: =Worksheet!P11 -> 0 | G13: =Worksheet!Q11 -> 0 | H13: =Worksheet!R11 -> 0 | J13: =Worksheet!T11 -> 17 | K13: =Worksheet!U11 -> 3 | L13: =Worksheet!V11 -> 3 | N13: =Worksheet!X11 -> 4 | O13: =Worksheet!Y11 -> 2 | P13: =Worksheet!Z11 -> 2 | Q13: DJM | R13: =Worksheet!W11 -> 3 | S13: =Worksheet!AB11 -> 16 | T13: =Worksheet!AC11 -> 1 | U13: =Worksheet!AD11 -> 3 | W13: =Worksheet!AG11 -> 0
A14: =Worksheet!K12 -> CJM | B14: =Worksheet!L12 -> 17 | C14: =Worksheet!M12 -> 5 | D14: =Worksheet!N12 -> 4.5 | F14: =Worksheet!P12 -> 0 | G14: =Worksheet!Q12 -> 0 | H14: =Worksheet!R12 -> 0 | J14: =Worksheet!T12 -> 14 | K14: =Worksheet!U12 -> 3 | L14: =Worksheet!V12 -> 3.5 | N14: =Worksheet!X12 -> 4 | O14: =Worksheet!Y12 -> 2 | P14: =Worksheet!Z12 -> 2 | Q14: CJM | R14: =Worksheet!W12 -> 3 | S14: =Worksheet!AB12 -> 10 | T14: =Worksheet!AC12 -> 4 | U14: =Worksheet!AD12 -> 4 | W14: =Worksheet!AG12 -> 0
A15: =Worksheet!K13 -> MFS | B15: =Worksheet!L13 -> 21 | C15: =Worksheet!M13 -> 5 | D15: =Worksheet!N13 -> 4 | F15: =Worksheet!P13 -> 0 | G15: =Worksheet!Q13 -> 0 | H15: =Worksheet!R13 -> 0 | J15: =Worksheet!T13 -> 14 | K15: =Worksheet!U13 -> 3 | L15: =Worksheet!V13 -> 3 | N15: =Worksheet!X13 -> 7 | O15: =Worksheet!Y13 -> 2 | P15: =Worksheet!Z13 -> 2 | Q15: MFS | R15: =Worksheet!W13 -> 4 | S15: =Worksheet!AB13 -> 10 | T15: =Worksheet!AC13 -> 2 | U15: =Worksheet!AD13 -> 4 | W15: =Worksheet!AG13 -> 0
A16: =Worksheet!K14 -> PRS | B16: =Worksheet!L14 -> 21 | C16: =Worksheet!M14 -> 3 | D16: =Worksheet!N14 -> 6 | F16: =Worksheet!P14 -> 0 | G16: =Worksheet!Q14 -> 0 | H16: =Worksheet!R14 -> 0 | J16: =Worksheet!T14 -> 15 | K16: =Worksheet!U14 -> 3 | L16: =Worksheet!V14 -> 4.5 | N16: =Worksheet!X14 -> 6 | O16: =Worksheet!Y14 -> 0 | P16: =Worksheet!Z14 -> 3 | Q16: PRS | R16: =Worksheet!W14 -> 6 | S16: =Worksheet!AB14 -> 14 | T16: =Worksheet!AC14 -> 3 | U16: =Worksheet!AD14 -> 3 | W16: =Worksheet!AG14 -> 0
A17: =Worksheet!K15 -> HLT | B17: =Worksheet!L15 -> 15 | C17: =Worksheet!M15 -> 5 | D17: =Worksheet!N15 -> 5.5 | F17: =Worksheet!P15 -> 0 | G17: =Worksheet!Q15 -> 0 | H17: =Worksheet!R15 -> 0 | J17: =Worksheet!T15 -> 12 | K17: =Worksheet!U15 -> 4 | L17: =Worksheet!V15 -> 4 | N17: =Worksheet!X15 -> 3 | O17: =Worksheet!Y15 -> 1 | P17: =Worksheet!Z15 -> 3 | Q17: HLT | R17: =Worksheet!W15 -> 2 | S17: =Worksheet!AB15 -> 12 | T17: =Worksheet!AC15 -> 5 | U17: =Worksheet!AD15 -> 3 | W17: =Worksheet!AG15 -> 0
A18: =Worksheet!K16 -> DRP | B18: =Worksheet!L16 -> 0 | C18: =Worksheet!M16 -> 0 | D18: =Worksheet!N16 -> 0 | F18: =Worksheet!P16 -> 0 | G18: =Worksheet!Q16 -> 0 | H18: =Worksheet!R16 -> 0 | J18: =Worksheet!T16 -> 0 | K18: =Worksheet!U16 -> 0 | L18: =Worksheet!V16 -> 0 | N18: =Worksheet!X16 -> 0 | O18: =Worksheet!Y16 -> 0 | P18: =Worksheet!Z16 -> 0 | Q18: DRP | R18: =Worksheet!W16 -> 0 | S18: =Worksheet!AB16 -> 11 | T18: =Worksheet!AC16 -> 0 | U18: =Worksheet!AD16 -> 0 | W18: =Worksheet!AG16 -> 0
A19: =Worksheet!K17 -> MBW | B19: =Worksheet!L17 -> 0 | C19: =Worksheet!M17 -> 0 | D19: =Worksheet!N17 -> 0 | F19: =Worksheet!P17 -> 0 | G19: =Worksheet!Q17 -> 0 | H19: =Worksheet!R17 -> 0 | J19: =Worksheet!T17 -> 0 | K19: =Worksheet!U17 -> 0 | L19: =Worksheet!V17 -> 0 | N19: =Worksheet!X17 -> 0 | O19: =Worksheet!Y17 -> 0 | P19: =Worksheet!Z17 -> 0 | Q19: MBW | R19: =Worksheet!W17 -> 0 | S19: =Worksheet!AB17 -> 12 | T19: =Worksheet!AC17 -> 0 | U19: =Worksheet!AD17 -> 0 | W19: =Worksheet!AG17 -> 0
A20: =Worksheet!K18 -> RCG | B20: =Worksheet!L18 -> 34 | C20: =Worksheet!M18 -> 6 | D20: =Worksheet!N18 -> 5 | F20: =Worksheet!P18 -> 17 | G20: =Worksheet!Q18 -> 6 | H20: =Worksheet!R18 -> 5 | J20: =Worksheet!T18 -> 0 | K20: =Worksheet!U18 -> 0 | L20: =Worksheet!V18 -> 0 | N20: =Worksheet!X18 -> 0 | O20: =Worksheet!Y18 -> 0 | P20: =Worksheet!Z18 -> 0 | Q20: RCG | R20: =Worksheet!W18 -> 0 | S20: =Worksheet!AB18 -> 0 | T20: =Worksheet!AC18 -> 0 | U20: =Worksheet!AD18 -> 0 | W20: =Worksheet!AG18 -> 0
A21: =Worksheet!K19 -> DBC | B21: =Worksheet!L19 -> 28 | C21: =Worksheet!M19 -> 8 | D21: =Worksheet!N19 -> 8 | F21: =Worksheet!P19 -> 7 | G21: =Worksheet!Q19 -> 5 | H21: =Worksheet!R19 -> 5 | J21: =Worksheet!T19 -> 14 | K21: =Worksheet!U19 -> 3 | L21: =Worksheet!V19 -> 3 | N21: =Worksheet!X19 -> 0 | O21: =Worksheet!Y19 -> 0 | P21: =Worksheet!Z19 -> 0 | Q21: DBC | R21: =Worksheet!W19 -> 3 | S21: =Worksheet!AB19 -> 13 | T21: =Worksheet!AC19 -> 5 | U21: =Worksheet!AD19 -> 2.5 | W21: =Worksheet!AG19 -> 0
A22: =Worksheet!K20 -> GBH | B22: =Worksheet!L20 -> 9 | C22: =Worksheet!M20 -> 7 | D22: =Worksheet!N20 -> 8 | F22: =Worksheet!P20 -> 0 | G22: =Worksheet!Q20 -> 5 | H22: =Worksheet!R20 -> 5 | J22: =Worksheet!T20 -> 9 | K22: =Worksheet!U20 -> 2 | L22: =Worksheet!V20 -> 3 | N22: =Worksheet!X20 -> 0 | O22: =Worksheet!Y20 -> 0 | P22: =Worksheet!Z20 -> 0 | Q22: GBH | R22: =Worksheet!W20 -> 3 | S22: =Worksheet!AB20 -> 7 | T22: =Worksheet!AC20 -> 2 | U22: =Worksheet!AD20 -> 2 | W22: =Worksheet!AG20 -> 0
A23: =Worksheet!K21 -> WRA | B23: =Worksheet!L21 -> 50 | C23: =Worksheet!M21 -> 5 | D23: =Worksheet!N21 -> 6 | F23: =Worksheet!P21 -> 25 | G23: =Worksheet!Q21 -> 5 | H23: =Worksheet!R21 -> 6 | J23: =Worksheet!T21 -> 0 | K23: =Worksheet!U21 -> 0 | L23: =Worksheet!V21 -> 0 | N23: =Worksheet!X21 -> 0 | O23: =Worksheet!Y21 -> 0 | P23: =Worksheet!Z21 -> 0 | Q23: WRA | R23: =Worksheet!W21 -> 0 | S23: =Worksheet!AB21 -> 0 | T23: =Worksheet!AC21 -> 0 | U23: =Worksheet!AD21 -> 0 | W23: =Worksheet!AG21 -> 0
A24: =Worksheet!K22 -> LDP | B24: =Worksheet!L22 -> 30 | C24: =Worksheet!M22 -> 8 | D24: =Worksheet!N22 -> 9 | F24: =Worksheet!P22 -> 8 | G24: =Worksheet!Q22 -> 6 | H24: =Worksheet!R22 -> 6 | J24: =Worksheet!T22 -> 14 | K24: =Worksheet!U22 -> 2 | L24: =Worksheet!V22 -> 3 | N24: =Worksheet!X22 -> 0 | O24: =Worksheet!Y22 -> 0 | P24: =Worksheet!Z22 -> 0 | Q24: LDP | R24: =Worksheet!W22 -> 4 | S24: =Worksheet!AB22 -> 12 | T24: =Worksheet!AC22 -> 3 | U24: =Worksheet!AD22 -> 3 | W24: =Worksheet!AG22 -> 0
A25: =Worksheet!K23 -> RJR | B25: =Worksheet!L23 -> 29 | C25: =Worksheet!M23 -> 11 | D25: =Worksheet!N23 -> 8 | F25: =Worksheet!P23 -> 8 | G25: =Worksheet!Q23 -> 5 | H25: =Worksheet!R23 -> 5 | J25: =Worksheet!T23 -> 13 | K25: =Worksheet!U23 -> 6 | L25: =Worksheet!V23 -> 3 | N25: =Worksheet!X23 -> 0 | O25: =Worksheet!Y23 -> 0 | P25: =Worksheet!Z23 -> 0 | Q25: RJR | R25: =Worksheet!W23 -> 3 | S25: =Worksheet!AB23 -> 10 | T25: =Worksheet!AC23 -> 3 | U25: =Worksheet!AD23 -> 3 | W25: =Worksheet!AG23 -> 0
A26: =Worksheet!K24 -> AJR | B26: =Worksheet!L24 -> 46 | C26: =Worksheet!M24 -> 12 | D26: =Worksheet!N24 -> 7 | F26: =Worksheet!P24 -> 17 | G26: =Worksheet!Q24 -> 8 | H26: =Worksheet!R24 -> 5 | J26: =Worksheet!T24 -> 12 | K26: =Worksheet!U24 -> 4 | L26: =Worksheet!V24 -> 2 | N26: =Worksheet!X24 -> 0 | O26: =Worksheet!Y24 -> 0 | P26: =Worksheet!Z24 -> 0 | Q26: AJR | R26: =Worksheet!W24 -> 3 | S26: =Worksheet!AB24 -> 10 | T26: =Worksheet!AC24 -> 4 | U26: =Worksheet!AD24 -> 3 | W26: =Worksheet!AG24 -> 0
A27: =Worksheet!K25 -> DK | B27: =Worksheet!L25 -> 0 | C27: =Worksheet!M25 -> 0 | D27: =Worksheet!N25 -> 4 | F27: =Worksheet!P25 -> 0 | G27: =Worksheet!Q25 -> 0 | H27: =Worksheet!R25 -> 4 | J27: =Worksheet!T25 -> 0 | K27: =Worksheet!U25 -> 0 | L27: =Worksheet!V25 -> 0 | N27: =Worksheet!X25 -> 0 | O27: =Worksheet!Y25 -> 0 | P27: =Worksheet!Z25 -> 0 | Q27: DK | R27: =Worksheet!W25 -> 0 | S27: =Worksheet!AB25 -> 0 | T27: =Worksheet!AC25 -> 0 | U27: =Worksheet!AD25 -> 0 | W27: =Worksheet!AG25 -> 0
A28: =Worksheet!K26 -> WS | B28: =Worksheet!L26 -> 0 | C28: =Worksheet!M26 -> 6 | D28: =Worksheet!N26 -> 6 | F28: =Worksheet!P26 -> 0 | G28: =Worksheet!Q26 -> 6 | H28: =Worksheet!R26 -> 6 | J28: =Worksheet!T26 -> 0 | K28: =Worksheet!U26 -> 0 | L28: =Worksheet!V26 -> 0 | N28: =Worksheet!X26 -> 0 | O28: =Worksheet!Y26 -> 0 | P28: =Worksheet!Z26 -> 0 | Q28: WS | R28: =Worksheet!W26 -> 0 | S28: =Worksheet!AB26 -> 0 | T28: =Worksheet!AC26 -> 0 | U28: =Worksheet!AD26 -> 0 | W28: =Worksheet!AG26 -> 0
A29: =Worksheet!K27 -> MAK | B29: =Worksheet!L27 -> 45 | C29: =Worksheet!M27 -> 6 | D29: =Worksheet!N27 -> 5 | F29: =Worksheet!P27 -> 22.5 | G29: =Worksheet!Q27 -> 6 | H29: =Worksheet!R27 -> 5 | J29: =Worksheet!T27 -> 0 | K29: =Worksheet!U27 -> 0 | L29: =Worksheet!V27 -> 0 | N29: =Worksheet!X27 -> 0 | O29: =Worksheet!Y27 -> 0 | P29: =Worksheet!Z27 -> 0 | Q29: MAK | R29: =Worksheet!W27 -> 0 | S29: =Worksheet!AB27 -> 0 | T29: =Worksheet!AC27 -> 0 | U29: =Worksheet!AD27 -> 0 | W29: =Worksheet!AG27 -> 0
A30: =Worksheet!K28 -> LOC | B30: =Worksheet!L28 -> 0 | C30: =Worksheet!M28 -> 0 | D30: =Worksheet!N28 -> 0 | F30: =Worksheet!P28 -> 0 | G30: =Worksheet!Q28 -> 0 | H30: =Worksheet!R28 -> 0 | J30: =Worksheet!T28 -> 0 | K30: =Worksheet!U28 -> 0 | L30: =Worksheet!V28 -> 0 | N30: =Worksheet!X28 -> 0 | O30: =Worksheet!Y28 -> 0 | P30: =Worksheet!Z28 -> 0 | Q30: LOC | R30: =Worksheet!W28 -> 0 | S30: =Worksheet!AB28 -> 0 | T30: =Worksheet!AC28 -> 0 | U30: =Worksheet!AD28 -> 0 | W30: =Worksheet!AG28 -> 0
A31: =Worksheet!K29 -> BHS | B31: =Worksheet!L29 -> 0 | C31: =Worksheet!M29 -> 0 | D31: =Worksheet!N29 -> 0 | F31: =Worksheet!P29 -> 0 | G31: =Worksheet!Q29 -> 0 | H31: =Worksheet!R29 -> 0 | J31: =Worksheet!T29 -> 0 | K31: =Worksheet!U29 -> 0 | L31: =Worksheet!V29 -> 0 | N31: =Worksheet!X29 -> 0 | O31: =Worksheet!Y29 -> 0 | P31: =Worksheet!Z29 -> 0 | Q31: BHS | R31: =Worksheet!W29 -> 0 | S31: =Worksheet!AB29 -> 0 | T31: =Worksheet!AC29 -> 0 | U31: =Worksheet!AD29 -> 0 | W31: =Worksheet!AG29 -> 0
A32: OTHER | B32: =Worksheet!L35 -> 169 | C32: =Worksheet!M35 -> 41 | D32: =Worksheet!N35 -> 41.5 | F32: =Worksheet!P35 -> 103.5 | G32: =Worksheet!Q35 -> 0 | H32: =Worksheet!R35 -> 0 | J32: =Worksheet!T35 -> 0 | K32: =Worksheet!U35 -> 0 | L32: =Worksheet!V35 -> 0 | N32: =Worksheet!X35 -> 168 | O32: =Worksheet!Y35 -> 41 | P32: =Worksheet!Z35 -> 82 | Q32: =A32 -> OTHER | S32: =Worksheet!AB35 -> -1 | T32: =Worksheet!AC35 -> 0 | U32: =Worksheet!AD35 -> 2.5 | W32: =Worksheet!AG35 -> 0
A36: Shifts worked on public holidays
A37: This includes official public holidays and the holiday day where it falls on a weekend
A38: Only change red squares | J38: TOTALS(days)
A39: PUBLIC HOLIDAYS | E39: POINTS | F39: ICU | G39: AGB | H39: BHS | J39: =Worksheet!K5 -> PJC | K39: =COUNTIF(PubHolWorkers,J39) -> 3
A40: Australia Day | C40: 2019-01-28 | F40: MAK | G40: GBH | J40: =Worksheet!K6 -> RAC | K40: 0
A41: Labour Day-Sat | C41: =C43-2 -> 2018-03-10 | F41: LDP | G41: DJM | J41: =Worksheet!K8 -> JGE | K41: 2
A42: Labour Day-Sun | C42: =C43-1 -> 2018-03-11 | F42: LDP | G42: DJM | H42: JGE | J42: =Worksheet!K9 -> SPF | K42: 3
A43: Labour Day | C43: 2018-03-12 | F43: WRA | G43: RJR | J43: =Worksheet!K10 -> GAH | K43: 0
A44: Good Friday | C44: 2018-03-30 | F44: WRA | G44: PRS | J44: =Worksheet!K11 -> DJM | K44: 3
A45: Easter Saturday | C45: =$C$44+1 -> 2018-03-31 | F45: WRA | G45: PRS | J45: =Worksheet!K12 -> CJM | K45: 2
A46: Easter Sunday | C46: =$C$44+2 -> 2018-04-01 | F46: WRA | G46: CJM | J46: =Worksheet!K13 -> MFS | K46: 2
A47: Easter Monday | C47: =$C$44+3 -> 2018-04-02 | F47: MAK | G47: CJM | H47: PRS | J47: =Worksheet!K14 -> PRS | K47: 4
A48: ANZAC Day | C48: 2018-04-25 | F48: WRA | G48: SPF | J48: =Worksheet!K15 -> HLT | K48: 0
A49: Queen's Birthday-Sat | C49: =$C$51-2 -> 2018-06-09 | F49: MAK | G49: SPF | J49: =Worksheet!K16 -> DRP | K49: 0
A50: Queen's Birthday-Sun | C50: =$C$51-1 -> 2018-06-10 | F50: MAK | G50: SPF | J50: =Worksheet!K17 -> MBW | K50: 0
A51: Queen's Birthday | C51: 2018-06-11 | F51: RCG | G51: DJM | J51: =Worksheet!K18 -> RCG | K51: 2
A52: AFL Final | C52: 2018-09-28 | F52: GBH | G52: AJR | H52: PJC | J52: =Worksheet!K19 -> DBC | K52: 2
A53: AFL Final-Sat | C53: =C52+1 -> 2018-09-29 | F53: GBH | G53: PJC | J53: =Worksheet!K20 -> GBH | K53: 4
A54: AFL Final-Sun | C54: =C52+2 -> 2018-09-30 | F54: GBH | G54: PJC | J54: =Worksheet!K21 -> WRA | K54: 7
A55: Ballarat Show Day | C55: 2018-11-09 | F55: RCG | G55: MFS | J55: =Worksheet!K22 -> LDP | K55: 3
A56: Ballarat Show Day | C56: =C55+1 -> 2018-11-10 | F56: WRA | G56: DBC | H56: PRS | J56: =Worksheet!K23 -> RJR | K56: 2
A57: Ballarat Show Day | C57: =C55+2 -> 2018-11-11 | F57: WRA | G57: DBC | J57: =Worksheet!K24 -> AJR | K57: 2
A58: Christmas Day Hol | C58: 2018-12-25 | F58: RJR | G58: JGE | J58: =Worksheet!K25 -> DK | K58: 0
A59: Christmas Day-Sat | J59: =Worksheet!K26 -> WS | K59: 0
A60: Christmas Day-Sun | J60: =Worksheet!K27 -> MAK | K60: 5
A61: Boxing Day | C61: 2018-12-26 | F61: LDP | G61: AJR | H61: REC | J61: =Worksheet!K28 -> LOC | K61: 0
A62: Bonus Day Holiday | J62: =Worksheet!K29 -> BHS | K62: 0
A63: New Years Day Hol | C63: 2019-01-01 | F63: MAK | G63: REC | H63: MFS | J63: =Worksheet!K30 -> ## | K63: 0
A64: New Years Day-Sat | J64: =Worksheet!K31 -> ## | K64: 0
A65: New Years Day-Sun | J65: =Worksheet!K32 -> ## | K65: 0

Sheet Worksheet (hidden)
A1: This worksheet remains hidden and transposes roster into type of call groups | L1: CURRENT YEAR | N1: 2018
A2: ICU
A3: week | B3: mon | C3: tue | D3: wed | E3: thu | F3: fri | G3: sat | H3: sun | L3: ALL NIGHTS | P3: ICU | T3: AGB | W3: AGB | X3: BHS | AB3: BACKUP | AG3: SATURDAY
A4: -2 | B4: =IF(CurrentRoster!B10<FirstRosterDay,"",CurrentRoster!B11) ->  | C4: =IF(CurrentRoster!C10<FirstRosterDay,"",CurrentRoster!C11) ->  | D4: =IF(CurrentRoster!D10<FirstRosterDay,"",CurrentRoster!D11) ->  | E4: =IF(CurrentRoster!E10<FirstRosterDay,"",CurrentRoster!E11) ->  | F4: =IF(CurrentRoster!F10<FirstRosterDay,"",CurrentRoster!F11) ->  | G4: =IF(CurrentRoster!G10<FirstRosterDay,"",CurrentRoster!G11) ->  | H4: =IF(CurrentRoster!H10<FirstRosterDay,"",CurrentRoster!H11) ->  | L4: Mon-Thu | M4: Fri | N4: Sat+Sun | P4: Mon-Thu | Q4: Fri | R4: Sat+Sun | T4: Mon-Thu | U4: Fri | V4: Sat+Sun | W4: Thur | X4: Mon-Thu | Y4: Fri | Z4: Sat OR Sun | AB4: Mon-Thu | AC4: Fri | AD4: Sat+Sun | AE4: TOTAL
A5: -1 | B5: =IF(CurrentRoster!B16<FirstRosterDay,"",CurrentRoster!B17) ->  | C5: =IF(CurrentRoster!C16<FirstRosterDay,"",CurrentRoster!C17) ->  | D5: =IF(CurrentRoster!D16<FirstRosterDay,"",CurrentRoster!D17) ->  | E5: =IF(CurrentRoster!E16<FirstRosterDay,"",CurrentRoster!E17) ->  | F5: =IF(CurrentRoster!F16<FirstRosterDay,"",CurrentRoster!F17) ->  | G5: =IF(CurrentRoster!G16<FirstRosterDay,"",CurrentRoster!G17) ->  | H5: =IF(CurrentRoster!H16<FirstRosterDay,"",CurrentRoster!H17) ->  | J5: 1 | K5: PJC | L5: =COUNTIF($B$4:$E$170,$K5) -> 16 | M5: =COUNTIF($F$4:$F$170,$K5) -> 5 | N5: =COUNTIF($G$4:$H$170,$K5)/2 -> 5 | P5: =COUNTIF(ICU_MonThu,$K5)/2 -> 0 | Q5: =COUNTIF(ICU_Fri,$K5) -> 0 | R5: =COUNTIF(ICU_SatSun,$K5)/2 -> 0 | T5: =COUNTIF(AGB_MonThu,$K5) -> 11 | U5: =COUNTIF(AGB_Fri,$K5) -> 4 | V5: =COUNTIF(AGB_SaSu,$K5)/2 -> 4 | W5: =COUNTIF(AGB_Th,$K5) -> 3 | X5: =COUNTIF(BHS_MoTh,$K5) -> 5 | Y5: =COUNTIF(BHS_Fr,$K5) -> 1 | Z5: =COUNTIF(BHS_SaSu,$K5) -> 3 | AA5: =K5 -> PJC | AB5: =COUNTIF(BackupMoTh,$K5) -> 10 | AC5: =COUNTIF(BackupFr,$K5) -> 4 | AD5: =COUNTIF(BackupSaSu,$K5)/2 -> 4 | AE5: =2*AD5+AC5+AB5 -> 22 | AG5: =COUNTIF($G$356:$G$407,$K5) -> 0 | AH5: =K5 -> PJC
A6: 0 | B6: =IF(CurrentRoster!B22<FirstRosterDay,"",CurrentRoster!B23) ->  | C6: =IF(CurrentRoster!C22<FirstRosterDay,"",CurrentRoster!C23) ->  | D6: =IF(CurrentRoster!D22<FirstRosterDay,"",CurrentRoster!D23) ->  | E6: =IF(CurrentRoster!E22<FirstRosterDay,"",CurrentRoster!E23) -> WRA | F6: =IF(CurrentRoster!F22<FirstRosterDay,"",CurrentRoster!F23) -> AJR | G6: =IF(CurrentRoster!G22<FirstRosterDay,"",CurrentRoster!G23) -> DK | H6: =IF(CurrentRoster!H22<FirstRosterDay,"",CurrentRoster!H23) -> DK | J6: 1 | K6: RAC | L6: 17 | M6: 4 | N6: 4.5 | P6: 0 | Q6: 0 | R6: 0 | T6: 13 | U6: 3 | V6: 3 | W6: 3 | X6: 4 | Y6: 1 | Z6: 3 | AA6: =K6 -> RAC | AB6: 12 | AC6: 4 | AD6: 4 | AE6: =2*AD6+AC6+AB6 -> 24 | AG6: 0 | AH6: =K6 -> RAC
A7: 1 | B7: =IF(CurrentRoster!B28<FirstRosterDay,"",CurrentRoster!B29) -> RCG | C7: =IF(CurrentRoster!C28<FirstRosterDay,"",CurrentRoster!C29) -> RCG | D7: =IF(CurrentRoster!D28<FirstRosterDay,"",CurrentRoster!D29) -> LDP | E7: =IF(CurrentRoster!E28<FirstRosterDay,"",CurrentRoster!E29) -> LDP | F7: =IF(CurrentRoster!F28<FirstRosterDay,"",CurrentRoster!F29) -> DBC | G7: =IF(CurrentRoster!G28<FirstRosterDay,"",CurrentRoster!G29) -> DBC | H7: =IF(CurrentRoster!H28<FirstRosterDay,"",CurrentRoster!H29) -> DBC | K7: REC | L7: 12 | M7: 3 | N7: 3.5 | P7: 0 | Q7: 0 | R7: 0 | T7: 10 | U7: 3 | V7: 3 | W7: 4 | X7: 2 | Y7: 0 | Z7: 1 | AA7: =K7 -> REC | AB7: 10 | AC7: 2 | AD7: 2 | AE7: =2*AD7+AC7+AB7 -> 16 | AG7: 0 | AH7: =K7 -> REC
A8: 2 | B8: =INDIRECT("CurrentRoster!B"&(6*$A8+23)) -> MAK | C8: =INDIRECT("CurrentRoster!C"&(6*$A8+23)) -> MAK | D8: =INDIRECT("CurrentRoster!D"&(6*$A8+23)) -> AJR | E8: =INDIRECT("CurrentRoster!E"&(6*$A8+23)) -> AJR | F8: =INDIRECT("CurrentRoster!F"&(6*$A8+23)) -> MAK | G8: =INDIRECT("CurrentRoster!G"&(6*$A8+23)) -> MAK | H8: =INDIRECT("CurrentRoster!H"&(6*$A8+23)) -> MAK | J8: 1 | K8: JGE | L8: 19 | M8: 5 | N8: 4.5 | P8: 0 | Q8: 0 | R8: 0 | T8: 14 | U8: 3 | V8: 3 | W8: 5 | X8: 5 | Y8: 2 | Z8: 3 | AA8: =K8 -> JGE | AB8: 13 | AC8: 3 | AD8: 2.5 | AE8: =2*AD8+AC8+AB8 -> 21 | AG8: 0 | AH8: =K8 -> JGE
A9: 3 | B9: =INDIRECT("CurrentRoster!B"&(6*$A9+23)) -> AJR | C9: =INDIRECT("CurrentRoster!C"&(6*$A9+23)) -> AJR | D9: =INDIRECT("CurrentRoster!D"&(6*$A9+23)) -> WRA | E9: =INDIRECT("CurrentRoster!E"&(6*$A9+23)) -> WRA | F9: =INDIRECT("CurrentRoster!F"&(6*$A9+23)) -> DBC | G9: =INDIRECT("CurrentRoster!G"&(6*$A9+23)) -> DBC | H9: =INDIRECT("CurrentRoster!H"&(6*$A9+23)) -> DBC | J9: 1 | K9: SPF | L9: 13 | M9: 3 | N9: 4 | P9: 0 | Q9: 0 | R9: 0 | T9: 13 | U9: 3 | V9: 4 | W9: 4 | X9: 0 | Y9: 0 | Z9: 0 | AA9: SPF | AB9: 13 | AC9: 2 | AD9: 4.5 | AE9: 24 | AG9: 0 | AH9: SPF
A10: 4 | B10: MAK | C10: MAK | D10: WRA | E10: WRA | F10: WS | G10: WS | H10: WS | J10: 1 | K10: GAH | L10: 13 | M10: 3 | N10: 3 | P10: 0 | Q10: 0 | R10: 0 | T10: 13 | U10: 3 | V10: 3 | W10: 0 | X10: 0 | Y10: 0 | Z10: 0 | AA10: GAH | AB10: 14 | AC10: 5 | AD10: 4 | AE10: 27 | AG10: 0 | AH10: GAH
A11: 5 | B11: RCG | C11: RCG | D11: AJR | E11: AJR | F11: LDP | G11: LDP | H11: LDP | J11: 1 | K11: DJM | L11: 20 | M11: 5 | N11: 4 | P11: 0 | Q11: 0 | R11: 0 | T11: 17 | U11: 3 | V11: 3 | W11: 3 | X11: 4 | Y11: 2 | Z11: 2 | AA11: DJM | AB11: 16 | AC11: 1 | AD11: 3 | AE11: 23 | AG11: 0 | AH11: DJM
A12: 6 | B12: WRA | C12: WRA | D12: DBC | E12: DBC | F12: AJR | G12: AJR | H12: AJR | J12: 1 | K12: CJM | L12: 17 | M12: 5 | N12: 4.5 | P12: 0 | Q12: 0 | R12: 0 | T12: 14 | U12: 3 | V12: 3.5 | W12: 3 | X12: 4 | Y12: 2 | Z12: 2 | AA12: CJM | AB12: 10 | AC12: 4 | AD12: 4 | AE12: 22 | AG12: 0 | AH12: CJM
A13: 7 | B13: MAK | C13: MAK | D13: AJR | E13: AJR | F13: RJR | G13: RJR | H13: RJR | J13: 1 | K13: MFS | L13: 21 | M13: 5 | N13: 4 | P13: 0 | Q13: 0 | R13: 0 | T13: 14 | U13: 3 | V13: 3 | W13: 4 | X13: 7 | Y13: 2 | Z13: 2 | AA13: MFS | AB13: 10 | AC13: 2 | AD13: 4 | AE13: 20 | AG13: 0 | AH13: MFS
A14: 8 | B14: AJR | C14: AJR | D14: LDP | E14: LDP | F14: WRA | G14: WRA | H14: WRA | J14: 1 | K14: PRS | L14: 21 | M14: 3 | N14: 6 | P14: 0 | Q14: 0 | R14: 0 | T14: 15 | U14: 3 | V14: 4.5 | W14: 6 | X14: 6 | Y14: 0 | Z14: 3 | AA14: PRS | AB14: 14 | AC14: 3 | AD14: 3 | AE14: 23 | AG14: 0 | AH14: PRS
A15: 9 | B15: MAK | C15: MAK | D15: RJR | E15: RJR | F15: GBH | G15: GBH | H15: GBH | J15: 1 | K15: HLT | L15: 15 | M15: 5 | N15: 5.5 | P15: 0 | Q15: 0 | R15: 0 | T15: 12 | U15: 4 | V15: 4 | W15: 2 | X15: 3 | Y15: 1 | Z15: 3 | AA15: HLT | AB15: 12 | AC15: 5 | AD15: 3 | AE15: 23 | AG15: 0 | AH15: HLT
A16: 10 | B16: RJR | C16: RJR | D16: WRA | E16: WRA | F16: GBH | G16: GBH | H16: GBH | J16: 1 | K16: DRP | L16: 0 | M16: 0 | N16: 0 | P16: 0 | Q16: 0 | R16: 0 | T16: 0 | U16: 0 | V16: 0 | W16: 0 | X16: 0 | Y16: 0 | Z16: 0 | AA16: DRP | AB16: 11 | AC16: 0 | AD16: 0 | AE16: 11 | AG16: 0 | AH16: DRP
A17: 11 | B17: LDP | C17: LDP | D17: AJR | E17: AJR | F17: MAK | G17: MAK | H17: MAK | J17: 2 | K17: MBW | L17: 0 | M17: 0 | N17: 0 | P17: 0 | Q17: 0 | R17: 0 | T17: 0 | U17: 0 | V17: 0 | W17: 0 | X17: 0 | Y17: 0 | Z17: 0 | AA17: MBW | AB17: 12 | AC17: 0 | AD17: 0 | AE17: 12 | AG17: 0 | AH17: MBW
A18: 12 | B18: AJR | C18: AJR | D18: WRA | E18: WRA | F18: AJR | G18: DK | H18: DK | J18: 2 | K18: RCG | L18: 34 | M18: 6 | N18: 5 | P18: 17 | Q18: 6 | R18: 5 | T18: 0 | U18: 0 | V18: 0 | W18: 0 | X18: 0 | Y18: 0 | Z18: 0 | AA18: RCG | AB18: 0 | AC18: 0 | AD18: 0 | AE18: 0 | AG18: 0 | AH18: RCG
A19: 13 | B19: MAK | C19: MAK | D19: AJR | E19: AJR | F19: WRA | G19: WRA | H19: WRA | J19: 2 | K19: DBC | L19: 28 | M19: 8 | N19: 8 | P19: 7 | Q19: 5 | R19: 5 | T19: 14 | U19: 3 | V19: 3 | W19: 3 | X19: 0 | Y19: 0 | Z19: 0 | AA19: DBC | AB19: 13 | AC19: 5 | AD19: 2.5 | AE19: 23 | AG19: 0 | AH19: DBC
A20: 14 | B20: MAK | C20: MAK | D20: WRA | E20: WRA | F20: WS | G20: WS | H20: WS | J20: 2 | K20: GBH | L20: 9 | M20: 7 | N20: 8 | P20: 0 | Q20: 5 | R20: 5 | T20: 9 | U20: 2 | V20: 3 | W20: 3 | X20: 0 | Y20: 0 | Z20: 0 | AA20: GBH | AB20: 7 | AC20: 2 | AD20: 2 | AE20: 13 | AG20: 0 | AH20: GBH
A21: 15 | B21: RCG | C21: RCG | D21: AJR | E21: AJR | F21: WRA | G21: RCG | H21: RCG | J21: 2 | K21: WRA | L21: 50 | M21: 5 | N21: 6 | P21: 25 | Q21: 5 | R21: 6 | T21: 0 | U21: 0 | V21: 0 | W21: 0 | X21: 0 | Y21: 0 | Z21: 0 | AA21: WRA | AB21: 0 | AC21: 0 | AD21: 0 | AE21: 0 | AG21: 0 | AH21: WRA
A22: 16 | B22: WRA | C22: WRA | D22: DBC | E22: DBC | F22: RJR | G22: RJR | H22: RJR | J22: 2 | K22: LDP | L22: 30 | M22: 8 | N22: 9 | P22: 8 | Q22: 6 | R22: 6 | T22: 14 | U22: 2 | V22: 3 | W22: 4 | X22: 0 | Y22: 0 | Z22: 0 | AA22: LDP | AB22: 12 | AC22: 3 | AD22: 3 | AE22: 21 | AG22: 0 | AH22: LDP
A23: 17 | B23: RCG | C23: RCG | D23: WRA | E23: WRA | F23: DBC | G23: DBC | H23: DBC | J23: 3 | K23: RJR | L23: 29 | M23: 11 | N23: 8 | P23: 8 | Q23: 5 | R23: 5 | T23: 13 | U23: 6 | V23: 3 | W23: 3 | X23: 0 | Y23: 0 | Z23: 0 | AA23: RJR | AB23: 10 | AC23: 3 | AD23: 3 | AE23: 19 | AG23: 0 | AH23: RJR
A24: 18 | B24: MAK | C24: MAK | D24: WRA | E24: WRA | F24: MAK | G24: MAK | H24: MAK | J24: 3 | K24: AJR | L24: 46 | M24: 12 | N24: 7 | P24: 17 | Q24: 8 | R24: 5 | T24: 12 | U24: 4 | V24: 2 | W24: 3 | X24: 0 | Y24: 0 | Z24: 0 | AA24: AJR | AB24: 10 | AC24: 4 | AD24: 3 | AE24: 20 | AG24: 0 | AH24: AJR
A25: 19 | B25: RCG | C25: RCG | D25: AJR | E25: AJR | F25: RCG | G25: DK | H25: DK | J25: 3 | K25: DK | L25: 0 | M25: 0 | N25: 4 | P25: 0 | Q25: 0 | R25: 4 | T25: 0 | U25: 0 | V25: 0 | W25: 0 | X25: 0 | Y25: 0 | Z25: 0 | AA25: DK | AB25: 0 | AC25: 0 | AD25: 0 | AE25: 0 | AG25: 0 | AH25: DK
A26: 20 | B26: MAK | C26: MAK | D26: WRA | E26: WRA | F26: LDP | G26: LDP | H26: LDP | J26: 3 | K26: WS | L26: 0 | M26: 6 | N26: 6 | P26: 0 | Q26: 6 | R26: 6 | T26: 0 | U26: 0 | V26: 0 | W26: 0 | X26: 0 | Y26: 0 | Z26: 0 | AA26: WS | AB26: 0 | AC26: 0 | AD26: 0 | AE26: 0 | AG26: 0 | AH26: WS
A27: 21 | B27: RCG | C27: RCG | D27: DBC | E27: DBC | F27: MAK | G27: RCG | H27: RCG | J27: 3 | K27: MAK | L27: 45 | M27: 6 | N27: 5 | P27: 22.5 | Q27: 6 | R27: 5 | T27: 0 | U27: 0 | V27: 0 | W27: 0 | X27: 0 | Y27: 0 | Z27: 0 | AA27: MAK | AB27: 0 | AC27: 0 | AD27: 0 | AE27: 0 | AG27: 0 | AH27: MAK
A28: 22 | B28: MAK | C28: MAK | D28: DBC | E28: DBC | F28: RCG | G28: MAK | H28: MAK | J28: 3 | K28: LOC | L28: 0 | M28: 0 | N28: 0 | P28: 0 | Q28: 0 | R28: 0 | T28: 0 | U28: 0 | V28: 0 | W28: 0 | X28: 0 | Y28: 0 | Z28: 0 | AA28: LOC | AB28: 0 | AC28: 0 | AD28: 0 | AE28: 0 | AG28: 0 | AH28: LOC
A29: 23 | B29: RCG | C29: RCG | D29: MAK | E29: MAK | F29: GBH | G29: GBH | H29: GBH | J29: 3 | K29: BHS | L29: 0 | M29: 0 | N29: 0 | P29: 0 | Q29: 0 | R29: 0 | T29: 0 | U29: 0 | V29: 0 | W29: 0 | X29: 0 | Y29: 0 | Z29: 0 | AA29: BHS | AB29: 0 | AC29: 0 | AD29: 0 | AE29: 0 | AG29: 0 | AH29: BHS
A30: 24 | B30: MAK | C30: MAK | D30: AJR | E30: AJR | F30: WS | G30: WS | H30: WS | K30: ## | L30: 0 | M30: 0 | N30: 0 | P30: 0 | Q30: 0 | R30: 0 | T30: 0 | U30: 0 | V30: 0 | W30: 0 | X30: 0 | Y30: 0 | Z30: 0 | AA30: ## | AB30: 0 | AC30: 0 | AD30: 0 | AE30: 0 | AG30: 0 | AH30: ##
A31: 25 | B31: RCG | C31: RCG | D31: AJR | E31: AJR | F31: WRA | G31: WRA | H31: WRA | K31: ## | L31: 0 | M31: 0 | N31: 0 | P31: 0 | Q31: 0 | R31: 0 | T31: 0 | U31: 0 | V31: 0 | W31: 0 | X31: 0 | Y31: 0 | Z31: 0 | AA31: ## | AB31: 0 | AC31: 0 | AD31: 0 | AE31: 0 | AG31: 0 | AH31: ##
A32: 26 | B32: MAK | C32: MAK | D32: WRA | E32: WRA | F32: AJR | G32: AJR | H32: AJR | K32: ## | L32: 0 | M32: 0 | N32: 0 | P32: 0 | Q32: 0 | R32: 0 | T32: 0 | U32: 0 | V32: 0 | W32: 0 | X32: 0 | Y32: 0 | Z32: 0 | AA32: ## | AB32: 0 | AC32: 0 | AD32: 0 | AE32: 0 | AG32: 0 | AH32: ##
A33: 27 | B33: RCG | C33: RCG | D33: LDP | E33: LDP | F33: AJR | G33: DK | H33: DK | K33: ## | L33: 0 | M33: 0 | N33: 0 | P33: 0 | Q33: 0 | R33: 0 | T33: 0 | U33: 0 | V33: 0 | W33: 0 | X33: 0 | Y33: 0 | Z33: 0 | AA33: ## | AB33: 0 | AC33: 0 | AD33: 0 | AE33: 0 | AG33: 0 | AH33: ##
A34: 28 | B34: RJR | C34: RJR | D34: WRA | E34: WRA | F34: LDP | G34: LDP | H34: LDP | K34: ## | L34: 0 | M34: 0 | N34: 0 | P34: 0 | Q34: 0 | R34: 0 | T34: 0 | U34: 0 | V34: 0 | W34: 0 | X34: 0 | Y34: 0 | Z34: 0 | AA34: ## | AB34: 0 | AC34: 0 | AD34: 0 | AE34: 0 | AG34: 0 | AH34: ##
A35: 29 | B35: MAK | C35: MAK | D35: AJR | E35: AJR | F35: LDP | G35: RCG | H35: RCG | K35: OTHER | L35: =3*4*52-SUM(L5:L34) -> 169 | M35: =3*52-SUM(M5:M34) -> 41 | N35: =3*52-SUM(N5:N34) -> 41.5 | P35: =4*52-SUM(P5:P34) -> 103.5 | Q35: =52-SUM(Q5:Q34) -> 0 | R35: =52-SUM(R5:R34) -> 0 | T35: =4*52-SUM(T5:T34) -> 0 | U35: =52-SUM(U5:U34) -> 0 | V35: =52-SUM(V5:V34) -> 0 | W35: =52-SUM(W5:W34) -> -1 | X35: =4*52-SUM(X5:X34) -> 168 | Y35: =52-SUM(Y5:Y34) -> 41 | Z35: =104-SUM(Z5:Z34) -> 82 | AA35: =K35 -> OTHER | AB35: =4*52-SUM(AB5:AB34) -> -1 | AC35: =52-SUM(AC5:AC34) -> 0 | AD35: =54-SUM(AD5:AD34) -> 2.5 | AE35: =SUM(AE5:AE34) -> 364 | AG35: =SUM(AG5:AG34) -> 0
A36: 30 | B36: LDP | C36: LDP | D36: WRA | E36: WRA | F36: WS | G36: WS | H36: WS
A37: 31 | B37: RCG | C37: RCG | D37: AJR | E37: AJR | F37: DBC | G37: DBC | H37: DBC
A38: 32 | B38: MAK | C38: MAK | D38: WRA | E38: WRA | F38: AJR | G38: AJR | H38: AJR | P38: NOTE; Special resolution 2005. | R38: 18 or more sessions/4w | U38: Full oncall responsibility | Z38: drp
A39: 33 | B39: DBC | C39: DBC | D39: WRA | E39: WRA | F39: WS | G39: WS | H39: WS | L39: ANAESTHETISTS | N39: 3-day w/e | R39: 9-17 sessions/4w | U39: 75% oncall responsibility | Z39: mbw
A40: 34 | B40: MAK | C40: MAK | D40: RJR | E40: RJR | F40: GBH | G40: GBH | H40: GBH | L40: Christie | M40: DBC | N40: TRUE | Z40: SPF
A41: 35 | B41: DBC | C41: DBC | D41: WRA | E41: WRA | F41: AJR | G41: AJR | H41: AJR | L41: Commons | M41: PJC | N41: FALSE | Z41: AJR
A42: 36 | B42: MAK | C42: MAK | D42: AJR | E42: AJR | F42: RCG | G42: LDP | H42: LDP | L42: Connell | M42: RAC | N42: FALSE | Z42: LDP
A43: 37 | B43: RCG | C43: RCG | D43: MAK | E43: MAK | F43: MAK | G43: RCG | H43: RCG | L43: Cowell | M43: REC | N43: FALSE | Z43: DJM
A44: 38 | B44: MAK | C44: MAK | D44: WRA | E44: WRA | F44: AJR | G44: AJR | H44: AJR | L44: Evans | M44: JGE | N44: FALSE | Z44: CJM
A45: 39 | B45: RCG | C45: RCG | D45: AJR | E45: AJR | F45: DBC | G45: DBC | H45: DBC | L45: Frost | M45: SPF | N45: FALSE | Z45: RAC
A46: 40 | B46: WRA | C46: MAK | D46: LDP | E46: LDP | F46: RCG | G46: WRA | H46: WRA | L46: Gazzard | M46: RCG | N46: FALSE | Z46: DBC
A47: 41 | B47: RCG | C47: RCG | D47: WRA | E47: WRA | F47: GBH | G47: GBH | H47: GBH | L47: Henderson | M47: GBH | N47: TRUE | Z47: GBH
A48: 42 | B48: RJR | C48: RJR | D48: DBC | E48: DBC | F48: WS | G48: WS | H48: WS | L48: Hughes | M48: GAH | N48: FALSE | Z48: GAH
A49: 43 | B49: RCG | C49: RCG | D49: WRA | E49: WRA | F49: RJR | G49: RJR | H49: RJR | L49: McIntyre | M49: DJM | N49: TRUE | Z49: RJR
A50: 44 | B50: WRA | C50: WRA | D50: RJR | E50: RJR | F50: LDP | G50: LDP | H50: LDP | L50: Mitchell | M50: CJM | N50: TRUE | Z50: JGE
A51: 45 | B51: RCG | C51: RCG | D51: WRA | E51: WRA | F51: LDP | G51: RCG | H51: RCG | L51: Paxton | M51: LDP | N51: FALSE | Z51: MFS
A52: 46 | B52: MAK | C52: MAK | D52: RJR | E52: RJR | F52: RCG | G52: LDP | H52: LDP | L52: Phillips | M52: DRP | N52: FALSE | Z52: PRS
A53: 47 | B53: RJR | C53: RJR | D53: LDP | E53: LDP | F53: RJR | G53: RJR | H53: RJR | L53: Ray | M53: RJR | N53: FALSE | Z53: HLT
A54: 48 | B54: MAK | C54: MAK | D54: AJR | E54: AJR | F54: RCG | G54: WRA | H54: WRA | L54: Richardson | M54: AJR | N54: TRUE
A55: 49 | B55: RCG | C55: RCG | D55: WRA | E55: WRA | F55: RJR | G55: RJR | H55: RJR | L55: Shaw | M55: MFS | N55: FALSE
A56: 50 | B56: MAK | C56: MAK | D56: WRA | E56: WRA | F56: MAK | G56: MAK | H56: MAK | L56: Shea | M56: PRS | N56: TRUE
A57: 51 | B57: RCG | C57: RCG | D57: LDP | E57: LDP | F57: WRA | G57: WRA | H57: WRA | L57: Tan | M57: HLT | N57: FALSE
A58: 52 | B58: =IF(CurrentRoster!B334>(FirstRosterDay+364),"",CurrentRoster!B335) -> MAK | C58: =IF(CurrentRoster!C334>(FirstRosterDay+364),"",CurrentRoster!C335) -> MAK | D58: =IF(CurrentRoster!D334>(FirstRosterDay+364),"",CurrentRoster!D335) -> WRA | E58: =IF(CurrentRoster!E334>(FirstRosterDay+364),"",CurrentRoster!E335) -> WRA | F58: =IF(CurrentRoster!F334>(FirstRosterDay+364),"",CurrentRoster!F335) ->  | G58: =IF(CurrentRoster!G334>(FirstRosterDay+364),"",CurrentRoster!G335) ->  | H58: =IF(CurrentRoster!H334>(FirstRosterDay+364),"",CurrentRoster!H335) ->  | L58: Whitehead | M58: MBW | N58: FALSE
L59: BHS | M59: BHS | N59: FALSE
L60: Ainslie | M60: WRA | Z60: 1
A61: AGB | L61: Sylvester | M61: WS | Y61: 35 | Z61: 2 | AA61: =CurrentRoster!B35 -> MAK | AB61: `
A62: -2 | B62: =IF(CurrentRoster!B10<FirstRosterDay,"",CurrentRoster!B12) ->  | C62: =IF(CurrentRoster!C10<FirstRosterDay,"",CurrentRoster!C12) ->  | D62: =IF(CurrentRoster!D10<FirstRosterDay,"",CurrentRoster!D12) ->  | E62: =IF(CurrentRoster!E10<FirstRosterDay,"",CurrentRoster!E12) ->  | F62: =IF(CurrentRoster!F10<FirstRosterDay,"",CurrentRoster!F12) ->  | G62: =IF(CurrentRoster!G10<FirstRosterDay,"",CurrentRoster!G12) ->  | H62: =IF(CurrentRoster!H10<FirstRosterDay,"",CurrentRoster!H12) ->  | L62: Dharshi | M62: DK | T62: CurrentYear | U62: =CurrentYear -> 2018 | Y62: 41 | Z62: 3 | AA62: =CurrentRoster!B41 -> AJR
A63: -1 | B63: =IF(CurrentRoster!B16<FirstRosterDay,"",CurrentRoster!B18) ->  | C63: =IF(CurrentRoster!C16<FirstRosterDay,"",CurrentRoster!C18) ->  | D63: =IF(CurrentRoster!D16<FirstRosterDay,"",CurrentRoster!D18) ->  | E63: =IF(CurrentRoster!E16<FirstRosterDay,"",CurrentRoster!E18) ->  | F63: =IF(CurrentRoster!F16<FirstRosterDay,"",CurrentRoster!F18) ->  | G63: =IF(CurrentRoster!G16<FirstRosterDay,"",CurrentRoster!G18) ->  | H63: =IF(CurrentRoster!H16<FirstRosterDay,"",CurrentRoster!H18) ->  | L63: Kubicki | M63: MAK | T63: CalenderStart | U63: ="1/2/"&CurrentYear -> 1/2/2018 | Y63: 47 | Z63: 4
A64: 0 | B64: =IF(CurrentRoster!B22<FirstRosterDay,"",CurrentRoster!B24) ->  | C64: =IF(CurrentRoster!C22<FirstRosterDay,"",CurrentRoster!C24) ->  | D64: =IF(CurrentRoster!D22<FirstRosterDay,"",CurrentRoster!D24) ->  | E64: =IF(CurrentRoster!E22<FirstRosterDay,"",CurrentRoster!E24) -> PRS | F64: =IF(CurrentRoster!F22<FirstRosterDay,"",CurrentRoster!F24) -> GBH | G64: =IF(CurrentRoster!G22<FirstRosterDay,"",CurrentRoster!G24) -> GBH | H64: =IF(CurrentRoster!H22<FirstRosterDay,"",CurrentRoster!H24) -> GBH | U64: =DATEVALUE(U63) -> 43132 | Z64: 5
A65: 1 | B65: =INDIRECT("CurrentRoster!B"&(6*$A65+24)) -> DJM | C65: =INDIRECT("CurrentRoster!C"&(6*$A65+24)) -> CJM | D65: =INDIRECT("CurrentRoster!D"&(6*$A65+24)) -> DJM | E65: =INDIRECT("CurrentRoster!E"&(6*$A65+24)) -> PRS | F65: =INDIRECT("CurrentRoster!F"&(6*$A65+24)) -> AJR | G65: =INDIRECT("CurrentRoster!G"&(6*$A65+24)) -> GAH | H65: =INDIRECT("CurrentRoster!H"&(6*$A65+24)) -> GAH | T65: Weekday | U65: =WEEKDAY(U63,2) -> 4 | Z65: 6
A66: 2 | B66: =INDIRECT("CurrentRoster!B"&(6*$A66+24)) -> LDP | C66: =INDIRECT("CurrentRoster!C"&(6*$A66+24)) -> PRS | D66: =INDIRECT("CurrentRoster!D"&(6*$A66+24)) -> DBC | E66: =INDIRECT("CurrentRoster!E"&(6*$A66+24)) -> HLT | F66: =INDIRECT("CurrentRoster!F"&(6*$A66+24)) -> DJM | G66: =INDIRECT("CurrentRoster!G"&(6*$A66+24)) -> RAC | H66: =INDIRECT("CurrentRoster!H"&(6*$A66+24)) -> RAC | N66: =COUNTIF(ThreeD_WE,"TRUE") -> 0 | T66: WorksheetStart | U66: =U64-13-U65 -> 2018-01-15 | Z66: 7
A67: 3 | B67: =INDIRECT("CurrentRoster!B"&(6*$A67+24)) -> HLT | C67: =INDIRECT("CurrentRoster!C"&(6*$A67+24)) -> MFS | D67: =INDIRECT("CurrentRoster!D"&(6*$A67+24)) -> JGE | E67: =INDIRECT("CurrentRoster!E"&(6*$A67+24)) -> SPF | F67: =INDIRECT("CurrentRoster!F"&(6*$A67+24)) -> REC | G67: =INDIRECT("CurrentRoster!G"&(6*$A67+24)) -> JGE | H67: =INDIRECT("CurrentRoster!H"&(6*$A67+24)) -> JGE | Z67: 8
A68: 4 | B68: AJR | C68: RJR | D68: JGE | E68: RAC | F68: HLT | G68: REC | H68: REC | Z68: 9
A69: 5 | B69: LDP | C69: PRS | D69: CJM | E69: SPF | F69: GAH | G69: DJM | H69: DJM
A70: 6 | B70: RJR | C70: AJR | D70: DJM | E70: MFS | F70: PJC | G70: PRS | H70: PRS
A71: 7 | B71: REC | C71: RAC | D71: GAH | E71: LDP | F71: DBC | G71: PJC | H71: PJC
A72: 8 | B72: HLT | C72: MFS | D72: RJR | E72: AJR | F72: PRS | G72: PRS | H72: CJM
A73: 9 | B73: CJM | C73: DBC | D73: GAH | E73: REC | F73: PJC | G73: MFS | H73: MFS
A74: 10 | B74: HLT | C74: DBC | D74: RAC | E74: CJM | F74: PRS | G74: PRS | H74: PRS
A75: 11 | B75: DJM | C75: 0 | D75: MFS | E75: JGE | F75: RJR | G75: HLT | H75: HLT
A76: 12 | B76: DJM | C76: DBC | D76: SPF | E76: RAC | F76: GAH | G76: RJR | H76: RJR
A77: 13 | B77: PJC | C77: PRS | D77: LDP | E77: REC | F77: JGE | G77: DBC | H77: DBC
A78: 14 | B78: AJR | C78: JGE | D78: DBC | E78: LDP | F78: RAC | G78: GAH | H78: GAH
A79: 15 | B79: CJM | C79: PRS | D79: PJC | E79: DBC | F79: REC | G79: LDP | H79: LDP
A80: 16 | B80: RJR | C80: HLT | D80: MFS | E80: LDP | F80: GBH | G80: GBH | H80: GBH
A81: 17 | B81: GAH | C81: PJC | D81: SPF | E81: DJM | F81: JGE | G81: JGE | H81: JGE
A82: 18 | B82: RAC | C82: GAH | D82: SPF | E82: GBH | F82: DBC | G82: SPF | H82: SPF
A83: 19 | B83: DJM | C83: LDP | D83: GBH | E83: DJM | F83: SPF | G83: DJM | H83: DJM
A84: 20 | B84: RJR | C84: HLT | D84: GAH | E84: JGE | F84: CJM | G84: CJM | H84: CJM
A85: 21 | B85: PJC | C85: AJR | D85: GAH | E85: AJR | F85: SPF | G85: GAH | H85: GAH
A86: 22 | B86: CJM | C86: RAC | D86: GAH | E86: SPF | F86: MFS | G86: REC | H86: REC
A87: 23 | B87: LDP | C87: PRS | D87: HLT | E87: PJC | F87: DJM | G87: MFS | H87: MFS
A88: 24 | B88: DJM | C88: CJM | D88: REC | E88: RAC | F88: SPF | G88: SPF | H88: SPF
A89: 25 | B89: MFS | C89: PRS | D89: PJC | E89: RJR | F89: HLT | G89: HLT | H89: HLT
A90: 26 | B90: DBC | C90: AJR | D90: REC | E90: RJR | F90: LDP | G90: DBC | H90: DBC
A91: 27 | B91: DJM | C91: JGE | D91: HLT | E91: PJC | F91: HLT | G91: PRS | H91: PRS
A92: 28 | B92: AJR | C92: SPF | D92: GAH | E92: JGE | F92: PJC | G92: AJR | H92: AJR
A93: 29 | B93: DJM | C93: PRS | D93: HLT | E93: REC | F93: RJR | G93: RAC | H93: RAC
A94: 30 | B94: DBC | C94: MFS | D94: CJM | E94: PRS | F94: JGE | G94: LDP | H94: LDP
A95: 31 | B95: AJR | C95: LDP | D95: DJM | E95: MFS | F95: RAC | G95: JGE | H95: JGE
A96: 32 | B96: RJR | C96: JGE | D96: GBH | E96: HLT | F96: CJM | G96: CJM | H96: CJM
A97: 33 | B97: RAC | C97: SPF | D97: MFS | E97: CJM | F97: AJR | G97: AJR | H97: AJR
A98: 34 | B98: RAC | C98: JGE | D98: REC | E98: PRS | F98: AJR | G98: PJC | H98: PJC
A99: 35 | B99: RAC | C99: GBH | D99: LDP | E99: DBC | F99: RAC | G99: SPF | H99: SPF
A100: 36 | B100: GAH | C100: SPF | D100: RAC | E100: PRS | F100: PJC | G100: REC | H100: REC
A101: 37 | B101: CJM | C101: PRS | D101: RAC | E101: LDP | F101: HLT | G101: MFS | H101: MFS
A102: 38 | B102: PJC | C102: GAH | D102: LDP | E102: GBH | F102: DBC | G102: GBH | H102: GBH
A103: 39 | B103: DJM | C103: CJM | D103: SPF | E103: RJR | F103: DJM | G103: DJM | H103: DJM
A104: 40 | B104: CJM | C104: DBC | D104: GBH | E104: JGE | F104: MFS | G104: DBC | H104: DBC
A105: 41 | B105: DJM | C105: RJR | D105: GAH | E105: JGE | F105: MFS | G105: HLT | H105: HLT
A106: 42 | B106: JGE | C106: PJC | D106: CJM | E106: REC | F106: RJR | G106: RJR | H106: RJR
A107: 43 | B107: MFS | C107: SPF | D107: DBC | E107: GBH | F107: REC | G107: RAC | H107: RAC
A108: 44 | B108: DJM | C108: AJR | D108: PJC | E108: MFS | F108: PRS | G108: PRS | H108: PRS
A109: 45 | B109: RJR | C109: PRS | D109: LDP | E109: MFS | F109: RJR | G109: SPF | H109: SPF
A110: 46 | B110: JGE | C110: SPF | D110: LDP | E110: CJM | F110: AJR | G110: HLT | H110: HLT
A111: 47 | B111: DJM | C111: JGE | D111: AJR | E111: DBC | F111: CJM | G111: CJM | H111: CJM
A112: 48 | B112: HLT | C112: REC | D112: RJR | E112: PJC | F112: GAH | G112: LDP | H112: LDP
A113: 49 | B113: REC | C113: GAH | D113: MFS | E113: DJM | F113: LDP | G113: PJC | H113: PJC
A114: 50 | B114: GBH | C114: RJR | D114: DBC | E114: PRS | F114: RJR | G114: RJR | H114: RJR
A115: 51 | B115: GAH | C115: HLT | D115: RAC | E115: AJR | F115: RJR | G115: PJC | H115: PJC
A116: 52 | B116: =IF(CurrentRoster!B334>(FirstRosterDay+365),"",CurrentRoster!B336) -> GBH | C116: =IF(CurrentRoster!C334>(FirstRosterDay+365),"",CurrentRoster!C336) -> DBC | D116: =IF(CurrentRoster!D334>(FirstRosterDay+365),"",CurrentRoster!D336) -> MFS | E116: =IF(CurrentRoster!E334>(FirstRosterDay+365),"",CurrentRoster!E336) -> SPF | F116: =IF(CurrentRoster!F334>(FirstRosterDay+364),"",CurrentRoster!F336) ->  | G116: =IF(CurrentRoster!G334>(FirstRosterDay+365),"",CurrentRoster!G336) ->  | H116: =IF(CurrentRoster!H334>(FirstRosterDay+365),"",CurrentRoster!H336) -> 
A118: BHS
A119: -2 | B119: =IF(CurrentRoster!B10<FirstRosterDay,"",CurrentRoster!B13) ->  | C119: =IF(CurrentRoster!C10<FirstRosterDay,"",CurrentRoster!C13) ->  | D119: =IF(CurrentRoster!D10<FirstRosterDay,"",CurrentRoster!D13) ->  | E119: =IF(CurrentRoster!E10<FirstRosterDay,"",CurrentRoster!E13) ->  | F119: =IF(CurrentRoster!F10<FirstRosterDay,"",CurrentRoster!F13) ->  | G119: =IF(CurrentRoster!G10<FirstRosterDay,"",CurrentRoster!G13) ->  | H119: =IF(CurrentRoster!H10<FirstRosterDay,"",CurrentRoster!H13) -> 
A120: -1 | B120: =IF(CurrentRoster!B16<FirstRosterDay,"",CurrentRoster!B19) ->  | C120: =IF(CurrentRoster!C16<FirstRosterDay,"",CurrentRoster!C19) ->  | D120: =IF(CurrentRoster!D16<FirstRosterDay,"",CurrentRoster!D19) ->  | E120: =IF(CurrentRoster!E16<FirstRosterDay,"",CurrentRoster!E19) ->  | F120: =IF(CurrentRoster!F16<FirstRosterDay,"",CurrentRoster!F19) ->  | G120: =IF(CurrentRoster!G16<FirstRosterDay,"",CurrentRoster!G19) ->  | H120: =IF(CurrentRoster!H16<FirstRosterDay,"",CurrentRoster!H19) -> 
A121: 0 | B121: =IF(CurrentRoster!B22<FirstRosterDay,"",CurrentRoster!B25) ->  | C121: =IF(CurrentRoster!C22<FirstRosterDay,"",CurrentRoster!C25) ->  | D121: =IF(CurrentRoster!D22<FirstRosterDay,"",CurrentRoster!D25) ->  | E121: =IF(CurrentRoster!E22<FirstRosterDay,"",CurrentRoster!E25) -> MFS | F121: =IF(CurrentRoster!F22<FirstRosterDay,"",CurrentRoster!F25) -> 0 | G121: =IF(CurrentRoster!G22<FirstRosterDay,"",CurrentRoster!G25) -> 0 | H121: =IF(CurrentRoster!H22<FirstRosterDay,"",CurrentRoster!H25) -> 0
A122: 1 | B122: =INDIRECT("CurrentRoster!B"&(6*$A122+25)) -> 0 | C122: =INDIRECT("CurrentRoster!c"&(6*$A122+25)) -> PRS | D122: =INDIRECT("CurrentRoster!D"&(6*$A122+25)) -> 0 | E122: =INDIRECT("CurrentRoster!E"&(6*$A122+25)) -> 0 | F122: =INDIRECT("CurrentRoster!F"&(6*$A122+25)) -> CJM | G122: =INDIRECT("CurrentRoster!G"&(6*$A122+25)) -> HLT | H122: =INDIRECT("CurrentRoster!H"&(6*$A122+25)) -> 0
A123: 2 | B123: =INDIRECT("CurrentRoster!B"&(6*$A123+25)) -> 0 | C123: =INDIRECT("CurrentRoster!c"&(6*$A123+25)) -> 0 | D123: =INDIRECT("CurrentRoster!D"&(6*$A123+25)) -> 0 | E123: =INDIRECT("CurrentRoster!E"&(6*$A123+25)) -> 0 | F123: =INDIRECT("CurrentRoster!F"&(6*$A123+25)) -> 0 | G123: =INDIRECT("CurrentRoster!G"&(6*$A123+25)) -> MFS | H123: =INDIRECT("CurrentRoster!H"&(6*$A123+25)) -> JGE
A124: 3 | B124: 0 | C124: 0 | D124: 0 | E124: 0 | F124: RAC | G124: 0 | H124: 0
A125: 4 | B125: 0 | C125: 0 | D125: 0 | E125: PJC | F125: 0 | G125: 0 | H125: 0
A126: 5 | B126: 0 | C126: 0 | D126: 0 | E126: 0 | F126: DJM | G126: 0 | H126: JGE
A127: 6 | B127: 0 | C127: 0 | D127: 0 | E127: 0 | F127: 0 | G127: 0 | H127: JGE
A128: 7 | B128: 0 | C128: 0 | D128: 0 | E128: 0 | F128: JGE | G128: 0 | H128: 0
A129: 8 | B129: 0 | C129: 0 | D129: 0 | E129: MFS | F129: 0 | G129: 0 | H129: 0
A130: 9 | B130: PRS | C130: 0 | D130: 0 | E130: 0 | F130: 0 | G130: 0 | H130: RAC
A131: 10 | B131: 0 | C131: 0 | D131: 0 | E131: 0 | F131: 0 | G131: 0 | H131: 0
A132: 11 | B132: PJC | C132: 0 | D132: 0 | E132: 0 | F132: 0 | G132: 0 | H132: 0
A133: 12 | B133: MFS | C133: 0 | D133: 0 | E133: 0 | F133: 0 | G133: HLT | H133: PJC
A134: 13 | B134: 0 | C134: 0 | D134: 0 | E134: 0 | F134: 0 | G134: RAC | H134: 0
A135: 14 | B135: JGE | C135: 0 | D135: 0 | E135: 0 | F135: 0 | G135: 0 | H135: 0
A136: 15 | B136: DJM | C136: 0 | D136: 0 | E136: 0 | F136: 0 | G136: 0 | H136: 0
A137: 16 | B137: 0 | C137: 0 | D137: 0 | E137: 0 | F137: JGE | G137: 0 | H137: 0
A138: 17 | B138: 0 | C138: 0 | D138: 0 | E138: PJC | F138: 0 | G138: 0 | H138: DJM
A139: 18 | B139: PJC | C139: 0 | D139: 0 | E139: 0 | F139: HLT | G139: 0 | H139: 0
A140: 19 | B140: 0 | C140: 0 | D140: 0 | E140: HLT | F140: 0 | G140: MFS | H140: 0
A141: 20 | B141: CJM | C141: 0 | D141: 0 | E141: 0 | F141: MFS | G141: 0 | H141: 0
A142: 21 | B142: 0 | C142: PRS | D142: 0 | E142: 0 | F142: 0 | G142: 0 | H142: 0
A143: 22 | B143: PRS | C143: HLT | D143: 0 | E143: 0 | F143: CJM | G143: 0 | H143: 0
A144: 23 | B144: RAC | C144: 0 | D144: 0 | E144: RAC | F144: 0 | G144: BBH | H144: 0
A145: 24 | B145: 0 | C145: 0 | D145: 0 | E145: MFS | F145: 0 | G145: 0 | H145: 0
A146: 25 | B146: 0 | C146: 0 | D146: 0 | E146: 0 | F146: 0 | G146: 0 | H146: BBH
A147: 26 | B147: 0 | C147: 0 | D147: 0 | E147: 0 | F147: BBH | G147: 0 | H147: 0
A148: 27 | B148: PJC | C148: PRS | D148: 0 | E148: DJM | F148: 0 | G148: 0 | H148: 0
A149: 28 | B149: CJM | C149: 0 | D149: 0 | E149: 0 | F149: 0 | G149: 0 | H149: PJC
A150: 29 | B150: 0 | C150: 0 | D150: 0 | E150: 0 | F150: 0 | G150: DJM | H150: 0
A151: 30 | B151: DJM | C151: 0 | D151: 0 | E151: 0 | F151: 0 | G151: 0 | H151: 0
A152: 31 | B152: 0 | C152: PRS | D152: 0 | E152: JGE | F152: 0 | G152: PRS | H152: 0
A153: 32 | B153: 0 | C153: 0 | D153: 0 | E153: 0 | F153: MFS | G153: 0 | H153: 0
A154: 33 | B154: 0 | C154: 0 | D154: 0 | E154: 0 | F154: 0 | G154: CJM | H154: 0
A155: 34 | B155: MFS | C155: 0 | D155: 0 | E155: 0 | F155: PJC | G155: 0 | H155: 0
A156: 35 | B156: 0 | C156: 0 | D156: 0 | E156: 0 | F156: 0 | G156: 0 | H156: 0
A157: 36 | B157: 0 | C157: 0 | D157: 0 | E157: 0 | F157: 0 | G157: 0 | H157: HLT
A158: 37 | B158: HLT | C158: 0 | D158: 0 | E158: 0 | F158: 0 | G158: 0 | H158: PRS
A159: 38 | B159: 0 | C159: 0 | D159: REC | E159: 0 | F159: 0 | G159: 0 | H159: 0
A160: 39 | B160: 0 | C160: 0 | D160: 0 | E160: RAC | F160: 0 | G160: REC | H160: 0
A161: 40 | B161: JGE | C161: 0 | D161: 0 | E161: 0 | F161: 0 | G161: PRS | H161: 0
A162: 41 | B162: RAC | C162: 0 | D162: 0 | E162: 0 | F162: 0 | G162: 0 | H162: 0
A163: 42 | B163: CJM | C163: 0 | D163: 0 | E163: 0 | F163: 0 | G163: 0 | H163: 0
A164: 43 | B164: 0 | C164: 0 | D164: 0 | E164: 0 | F164: 0 | G164: 0 | H164: 0
A165: 44 | B165: 0 | C165: 0 | D165: 0 | E165: 0 | F165: 0 | G165: 0 | H165: 0
A166: 45 | B166: MFS | C166: JGE | D166: 0 | E166: 0 | F166: 0 | G166: 0 | H166: CJM
A167: 46 | B167: 0 | C167: 0 | D167: 0 | E167: 0 | F167: 0 | G167: 0 | H167: 0
A168: 47 | B168: 0 | C168: 0 | D168: REC | E168: JGE | F168: DJM | G168: 0 | H168: 0
A169: 48 | B169: 0 | C169: MFS | D169: 0 | E169: 0 | F169: 0 | G169: 0 | H169: 0
A170: 49 | B170: 0 | C170: 0 | D170: 0 | E170: 0 | F170: 0 | G170: 0 | H170: RAC
A171: 50 | B171: DJM | C171: 0 | D171: 0 | E171: CJM | F171: 0 | G171: PJC | H171: 0
A172: 51 | B172: 0 | C172: 0 | D172: 0 | E172: 0 | F172: 0 | G172: 0 | H172: 0
A173: 52 | B173: =IF(CurrentRoster!B334>(FirstRosterDay+364),"",CurrentRoster!B337) -> 0 | C173: =IF(CurrentRoster!C334>(FirstRosterDay+364),"",CurrentRoster!C337) -> 0 | D173: =IF(CurrentRoster!D334>(FirstRosterDay+364),"",CurrentRoster!D337) -> 0 | E173: =IF(CurrentRoster!E334>(FirstRosterDay+364),"",CurrentRoster!E337) -> 0 | F173: =IF(CurrentRoster!F334>(FirstRosterDay+364),"",CurrentRoster!F337) ->  | G173: =IF(CurrentRoster!G334>(FirstRosterDay+364),"",CurrentRoster!G337) ->  | H173: =IF(CurrentRoster!H334>(FirstRosterDay+364),"",CurrentRoster!H337) -> 
A176: AREA FOR STORAGE OF ACTIVE TOOLBAR NAMES
A177: Standard
A178: Formatting
A179: Status Bar
A180: Ribbon
A298: SECOND ON
A299: -2 | B299: =IF(CurrentRoster!B10<FirstRosterDay,"",CurrentRoster!B14) ->  | C299: =IF(CurrentRoster!C10<FirstRosterDay,"",CurrentRoster!C14) ->  | D299: =IF(CurrentRoster!D10<FirstRosterDay,"",CurrentRoster!D14) ->  | E299: =IF(CurrentRoster!E10<FirstRosterDay,"",CurrentRoster!E14) ->  | F299: =IF(CurrentRoster!F10<FirstRosterDay,"",CurrentRoster!F14) ->  | G299: =IF(CurrentRoster!G10<FirstRosterDay,"",CurrentRoster!G14) ->  | H299: =IF(CurrentRoster!H10<FirstRosterDay,"",CurrentRoster!H14) -> 
A300: -1 | B300: =IF(CurrentRoster!B16<FirstRosterDay,"",CurrentRoster!B20) ->  | C300: =IF(CurrentRoster!C16<FirstRosterDay,"",CurrentRoster!C20) ->  | D300: =IF(CurrentRoster!D16<FirstRosterDay,"",CurrentRoster!D20) ->  | E300: =IF(CurrentRoster!E16<FirstRosterDay,"",CurrentRoster!E20) ->  | F300: =IF(CurrentRoster!F16<FirstRosterDay,"",CurrentRoster!F20) ->  | G300: =IF(CurrentRoster!G16<FirstRosterDay,"",CurrentRoster!G20) ->  | H300: =IF(CurrentRoster!H16<FirstRosterDay,"",CurrentRoster!H20) -> 
A301: 0 | B301: =IF(CurrentRoster!B22<FirstRosterDay,"",CurrentRoster!B26) ->  | C301: =IF(CurrentRoster!C22<FirstRosterDay,"",CurrentRoster!C26) ->  | D301: =IF(CurrentRoster!D22<FirstRosterDay,"",CurrentRoster!D26) ->  | E301: =IF(CurrentRoster!E22<FirstRosterDay,"",CurrentRoster!E26) -> DBC | F301: =IF(CurrentRoster!F22<FirstRosterDay,"",CurrentRoster!F26) -> HLT | G301: =IF(CurrentRoster!G22<FirstRosterDay,"",CurrentRoster!G26) -> HLT | H301: =IF(CurrentRoster!H22<FirstRosterDay,"",CurrentRoster!H26) -> HLT
A302: 1 | B302: =INDIRECT("CurrentRoster!B"&(6*$A302+26)) -> GAH | C302: =INDIRECT("CurrentRoster!C"&(6*$A302+26)) -> MBW | D302: =INDIRECT("CurrentRoster!D"&(6*$A302+26)) -> JGE | E302: =INDIRECT("CurrentRoster!E"&(6*$A302+26)) -> CJM | F302: =INDIRECT("CurrentRoster!F"&(6*$A302+26)) -> RAC | G302: =INDIRECT("CurrentRoster!G"&(6*$A302+26)) -> RAC | H302: =INDIRECT("CurrentRoster!H"&(6*$A302+26)) -> RAC
A303: 2 | B303: =INDIRECT("CurrentRoster!B"&(6*$A303+26)) -> SPF | C303: =INDIRECT("CurrentRoster!C"&(6*$A303+26)) -> RAC | D303: =INDIRECT("CurrentRoster!D"&(6*$A303+26)) -> DRP | E303: =INDIRECT("CurrentRoster!E"&(6*$A303+26)) -> REC | F303: =INDIRECT("CurrentRoster!F"&(6*$A303+26)) -> PRS | G303: =INDIRECT("CurrentRoster!G"&(6*$A303+26)) -> PRS | H303: =INDIRECT("CurrentRoster!H"&(6*$A303+26)) -> PRS
A304: 3 | B304: RJR | C304: RAC | D304: LDP | E304: AJR | F304: DJM | G304: DJM | H304: DJM
A305: 4 | B305: MFS | C305: DJM | D305: HLT | E305: PRS | F305: GBH | G305: GBH | H305: GBH
A306: 5 | B306: RAC | C306: JGE | D306: MFS | E306: CJM | F306: JGE | G306: JGE | H306: SPF
A307: 6 | B307: DBC | C307: DRP | D307: GAH | E307: MBW | F307: RJR | G307: SPF | H307: SPF
A308: 7 | B308: SPF | C308: SPF | D308: DJM | E308: REC | F308: HLT | G308: HLT | H308: JGE
A309: 8 | B309: LDP | C309: JGE | D309: GAH | E309: PJC | F309: DBC | G309: DBC | H309: MFS
A310: 9 | B310: MFS | C310: RAC | D310: RAC | E310: DBC | F310: GAH | G310: GAH | H310: GAH
A311: 10 | B311: GBH | C311: DRP | D311: GAH | E311: DBC | F311: GAH | G311: GAH | H311: GAH
A312: 11 | B312: AJR | C312: MBW | D312: DJM | E312: SPF | F312: PJC | G312: PJC | H312: PJC
A313: 12 | B313: RJR | C313: MFS | D313: HLT | E313: REC | F313: CJM | G313: CJM | H313: CJM
A314: 13 | B314: LDP | C314: HLT | D314: PJC | E314: PRS | F314: DBC | G314: LDP | H314: LDP
A315: 14 | B315: GAH | C315: DBC | D315: DRP | E315: MBW | F315: AJR | G315: AJR | H315: AJR
A316: 15 | B316: LDP | C316: SPF | D316: JGE | E316: CJM | F316: PRS | G316: PRS | H316: PRS
A317: 16 | B317: AJR | C317: GBH | D317: DJM | E317: CJM | F317: HLT | G317: RJR | H317: RJR
A318: 17 | B318: DJM | C318: PRS | D318: RJR | E318: HLT | F318: RJR | G318: RJR | H318: RJR
A319: 18 | B319: PRS | C319: DBC | D319: RAC | E319: REC | F319: RAC | G319: RAC | H319: RAC
A320: 19 | B320: MFS | C320: SPF | D320: DBC | E320: JGE | F320: AJR | G320: AJR | H320: AJR
... 86 more rows

Sheet CurrentRoster
D1: =CurrentYear -> 2018
A2: Roster for Anaesthesia and Intensive Care
A4: THIS VERSION IS THE CURRENT ACTIVE ROSTER
A5: The file is held on the AGB server and is regularly updated
A6: THIS VERSION IS A DUPLICATE FOR OFFSITE VIEWING
A7: It is only updated weekly and may not contain changes made within the last few days.
C8: This copy is current as of; | E8: =NOW()-NOW()+getproperty("Last Save Time") -> 2018-12-21T16:16:51
A10: -2 | B10: =CurrentRosterStart -> 2018-01-15 | C10: =$B10+1 -> 2018-01-16 | D10: =$B10+2 -> 2018-01-17 | E10: =$B10+3 -> 2018-01-18 | F10: =$B10+4 -> 2018-01-19 | G10: =$B10+5 -> 2018-01-20 | H10: =$B10+6 -> 2018-01-21
A11: ICU | B11: RJR | C11: RJR | D11: WRA | E11: WRA | F11: RJR | G11: RJR | H11: RJR
A12: AGB | B12: AJR | C12: RAC | D12: LDP | E12: PRS | F12: MFS | G12: JGE | H12: JGE
A13: BHS | E13: JGE | G13: MFS
A14: BACKUP | B14: PRS | C14: JGE | D14: JGE | E14: GAH | F14: AJR | G14: AJR | H14: AJR
A15: Leave | B15: DBC SPF GBH DJM HLT
A16: -1 | B16: =CurrentRosterStart+7*(A16+2) -> 2018-01-22 | C16: =$B16+1 -> 2018-01-23 | D16: =$B16+2 -> 2018-01-24 | E16: =$B16+3 -> 2018-01-25 | F16: =$B16+4 -> 2018-01-26 | G16: =$B16+5 -> 2018-01-27 | H16: =$B16+6 -> 2018-01-28
A17: ICU | B17: RCG | C17: RCG | D17: AJR | E17: AJR | F17: WRA | G17: WRA | H17: WRA
A18: AGB | B18: GAH | C18: SPF | D18: DBC | E18: GBH | F18: JGE | G18: AJR | H18: AJR
A19: BHS
A20: BACKUP | B20: DBC | C20: GBH | D20: RJR | E20: LDP | F20: RAC | G20: RAC | H20: RAC
A21: Leave | B21: DJM LDP
A22: 0 | B22: =CurrentRosterStart+7*(A22+2) -> 2018-01-29 | C22: =$B22+1 -> 2018-01-30 | D22: =$B22+2 -> 2018-01-31 | E22: =$B22+3 -> 2018-02-01 | F22: =$B22+4 -> 2018-02-02 | G22: =$B22+5 -> 2018-02-03 | H22: =$B22+6 -> 2018-02-04
A23: ICU | B23: AJR | C23: AJR | D23: WRA | E23: WRA | F23: AJR | G23: DK | H23: DK
A24: AGB | B24: DBC | C24: RJR | D24: AJR | E24: PRS | F24: GBH | G24: GBH | H24: GBH
A25: BHS | B25: JGE | E25: MFS
A26: BACKUP | B26: GBH | C26: SPF | D26: MFS | E26: DBC | F26: HLT | G26: HLT | H26: HLT
A27: Leave | B27: LDP JGE(W-F)
A28: =A22+1 -> 1 | B28: =CurrentRosterStart+7*(A28+2) -> 2018-02-05 | C28: =$B28+1 -> 2018-02-06 | D28: =$B28+2 -> 2018-02-07 | E28: =$B28+3 -> 2018-02-08 | F28: =$B28+4 -> 2018-02-09 | G28: =$B28+5 -> 2018-02-10 | H28: =$B28+6 -> 2018-02-11
A29: ICU | B29: RCG | C29: RCG | D29: LDP | E29: LDP | F29: DBC | G29: DBC | H29: DBC
A30: AGB | B30: DJM | C30: CJM | D30: DJM | E30: PRS | F30: AJR | G30: GAH | H30: GAH
A31: BHS | C31: PRS | F31: CJM | G31: HLT
A32: BACKUP | B32: GAH | C32: MBW | D32: JGE | E32: CJM | F32: RAC | G32: RAC | H32: RAC
A33: Leave | B33: MFS
A34: =A28+1 -> 2 | B34: =CurrentRosterStart+7*(A34+2) -> 2018-02-12 | C34: =$B34+1 -> 2018-02-13 | D34: =$B34+2 -> 2018-02-14 | E34: =$B34+3 -> 2018-02-15 | F34: =$B34+4 -> 2018-02-16 | G34: =$B34+5 -> 2018-02-17 | H34: =$B34+6 -> 2018-02-18
A35: ICU | B35: MAK | C35: MAK | D35: AJR | E35: AJR | F35: MAK | G35: MAK | H35: MAK
A36: AGB | B36: LDP | C36: PRS | D36: DBC | E36: HLT | F36: DJM | G36: RAC | H36: RAC
A37: BHS | G37: MFS | H37: JGE
A38: BACKUP | B38: SPF | C38: RAC | D38: DRP | E38: REC | F38: PRS | G38: PRS | H38: PRS
A39: Leave | B39: CJM RCG
A40: =A34+1 -> 3 | B40: =CurrentRosterStart+7*(A40+2) -> 2018-02-19 | C40: =$B40+1 -> 2018-02-20 | D40: =$B40+2 -> 2018-02-21 | E40: =$B40+3 -> 2018-02-22 | F40: =$B40+4 -> 2018-02-23 | G40: =$B40+5 -> 2018-02-24 | H40: =$B40+6 -> 2018-02-25
A41: ICU | B41: AJR | C41: AJR | D41: WRA | E41: WRA | F41: DBC | G41: DBC | H41: DBC
A42: AGB | B42: HLT | C42: MFS | D42: JGE | E42: SPF | F42: REC | G42: JGE | H42: JGE
A43: BHS | F43: RAC
A44: BACKUP | B44: RJR | C44: RAC | D44: LDP | E44: AJR | F44: DJM | G44: DJM | H44: DJM
A45: Leave | B45: GAH CJM MBW RCG
A46: =A40+1 -> 4 | B46: =CurrentRosterStart+7*(A46+2) -> 2018-02-26 | C46: =$B46+1 -> 2018-02-27 | D46: =$B46+2 -> 2018-02-28 | E46: =$B46+3 -> 2018-03-01 | F46: =$B46+4 -> 2018-03-02 | G46: =$B46+5 -> 2018-03-03 | H46: =$B46+6 -> 2018-03-04
A47: ICU | B47: MAK | C47: MAK | D47: WRA | E47: WRA | F47: WS | G47: WS | H47: WS
A48: AGB | B48: AJR | C48: RJR | D48: JGE | E48: RAC | F48: HLT | G48: REC | H48: REC
A49: BHS | E49: PJC
A50: BACKUP | B50: MFS | C50: DJM | D50: HLT | E50: PRS | F50: GBH | G50: GBH | H50: GBH
A51: Leave | B51: PJC GAH CJM DRP
A52: =A46+1 -> 5 | B52: =CurrentRosterStart+7*(A52+2) -> 2018-03-05 | C52: =$B52+1 -> 2018-03-06 | D52: =$B52+2 -> 2018-03-07 | E52: =$B52+3 -> 2018-03-08 | F52: =$B52+4 -> 2018-03-09 | G52: =$B52+5 -> 2018-03-10 | H52: =$B52+6 -> 2018-03-11
A53: ICU | B53: RCG | C53: RCG | D53: AJR | E53: AJR | F53: LDP | G53: LDP | H53: LDP
A54: AGB | B54: LDP | C54: PRS | D54: CJM | E54: SPF | F54: GAH | G54: DJM | H54: DJM
A55: BHS | F55: DJM | H55: JGE
A56: BACKUP | B56: RAC | C56: JGE | D56: MFS | E56: CJM | F56: JGE | G56: JGE | H56: SPF
A57: Leave | B57: PJC DRP(M)
A58: =A52+1 -> 6 | B58: =CurrentRosterStart+7*(A58+2) -> 2018-03-12 | C58: =$B58+1 -> 2018-03-13 | D58: =$B58+2 -> 2018-03-14 | E58: =$B58+3 -> 2018-03-15 | F58: =$B58+4 -> 2018-03-16 | G58: =$B58+5 -> 2018-03-17 | H58: =$B58+6 -> 2018-03-18
A59: ICU | B59: WRA | C59: WRA | D59: DBC | E59: DBC | F59: AJR | G59: AJR | H59: AJR
A60: AGB | B60: RJR | C60: AJR | D60: DJM | E60: MFS | F60: PJC | G60: PRS | H60: PRS
A61: BHS | H61: JGE
A62: BACKUP | B62: DBC | C62: DRP | D62: GAH | E62: MBW | F62: RJR | G62: SPF | H62: SPF
A63: Leave | B63: DRP(TH-F) WRA(TH-F)
A64: =A58+1 -> 7 | B64: =CurrentRosterStart+7*(A64+2) -> 2018-03-19 | C64: =$B64+1 -> 2018-03-20 | D64: =$B64+2 -> 2018-03-21 | E64: =$B64+3 -> 2018-03-22 | F64: =$B64+4 -> 2018-03-23 | G64: =$B64+5 -> 2018-03-24 | H64: =$B64+6 -> 2018-03-25
A65: ICU | B65: MAK | C65: MAK | D65: AJR | E65: AJR | F65: RJR | G65: RJR | H65: RJR
A66: AGB | B66: REC | C66: RAC | D66: GAH | E66: LDP | F66: DBC | G66: PJC | H66: PJC
A67: BHS | F67: JGE
A68: BACKUP | B68: SPF | C68: SPF | D68: DJM | E68: REC | F68: HLT | G68: HLT | H68: JGE
A69: Leave | B69: DRP(TH-F) RCG WRA
A70: =A64+1 -> 8 | B70: =CurrentRosterStart+7*(A70+2) -> 2018-03-26 | C70: =$B70+1 -> 2018-03-27 | D70: =$B70+2 -> 2018-03-28 | E70: =$B70+3 -> 2018-03-29 | F70: =$B70+4 -> 2018-03-30 | G70: =$B70+5 -> 2018-03-31 | H70: =$B70+6 -> 2018-04-01
A71: ICU | B71: AJR | C71: AJR | D71: LDP | E71: LDP | F71: WRA | G71: WRA | H71: WRA
A72: AGB | B72: HLT | C72: MFS | D72: RJR | E72: AJR | F72: PRS | G72: PRS | H72: CJM
A73: BHS | E73: MFS
A74: BACKUP | B74: LDP | C74: JGE | D74: GAH | E74: PJC | F74: DBC | G74: DBC | H74: MFS
A75: Leave | B75: RCG WRA(M-TH) REC GAH
A76: =A70+1 -> 9 | B76: =CurrentRosterStart+7*(A76+2) -> 2018-04-02 | C76: =$B76+1 -> 2018-04-03 | D76: =$B76+2 -> 2018-04-04 | E76: =$B76+3 -> 2018-04-05 | F76: =$B76+4 -> 2018-04-06 | G76: =$B76+5 -> 2018-04-07 | H76: =$B76+6 -> 2018-04-08
A77: ICU | B77: MAK | C77: MAK | D77: RJR | E77: RJR | F77: GBH | G77: GBH | H77: GBH
A78: AGB | B78: CJM | C78: DBC | D78: GAH | E78: REC | F78: PJC | G78: MFS | H78: MFS
A79: BHS | B79: PRS | H79: RAC
A80: BACKUP | B80: MFS | C80: RAC | D80: RAC | E80: DBC | F80: GAH | G80: GAH | H80: GAH
A81: Leave | B81: JGE DJM(M-TU) AJR RCG WRA GAH
A82: =A76+1 -> 10 | B82: =CurrentRosterStart+7*(A82+2) -> 2018-04-09 | C82: =$B82+1 -> 2018-04-10 | D82: =$B82+2 -> 2018-04-11 | E82: =$B82+3 -> 2018-04-12 | F82: =$B82+4 -> 2018-04-13 | G82: =$B82+5 -> 2018-04-14 | H82: =$B82+6 -> 2018-04-15
A83: ICU | B83: RJR | C83: RJR | D83: WRA | E83: WRA | F83: GBH | G83: GBH | H83: GBH
A84: AGB | B84: HLT | C84: DBC | D84: RAC | E84: CJM | F84: PRS | G84: PRS | H84: PRS
A85: BHS
A86: BACKUP | B86: GBH | C86: DRP | D86: GAH | E86: DBC | F86: GAH | G86: GAH | H86: GAH
A87: Leave | B87: JGE DJM(M-W) AJR SPF
A88: =A82+1 -> 11 | B88: =CurrentRosterStart+7*(A88+2) -> 2018-04-16 | C88: =$B88+1 -> 2018-04-17 | D88: =$B88+2 -> 2018-04-18 | E88: =$B88+3 -> 2018-04-19 | F88: =$B88+4 -> 2018-04-20 | G88: =$B88+5 -> 2018-04-21 | H88: =$B88+6 -> 2018-04-22
A89: ICU | B89: LDP | C89: LDP | D89: AJR | E89: AJR | F89: MAK | G89: MAK | H89: MAK
A90: AGB | B90: DJM | D90: MFS | E90: JGE | F90: RJR | G90: HLT | H90: HLT
A91: BHS | B91: PJC
A92: BACKUP | B92: AJR | C92: MBW | D92: DJM | E92: SPF | F92: PJC | G92: PJC | H92: PJC
A93: Leave | B93: DBC RCG/WRA
A94: =A88+1 -> 12 | B94: =CurrentRosterStart+7*(A94+2) -> 2018-04-23 | C94: =$B94+1 -> 2018-04-24 | D94: =$B94+2 -> 2018-04-25 | E94: =$B94+3 -> 2018-04-26 | F94: =$B94+4 -> 2018-04-27 | G94: =$B94+5 -> 2018-04-28 | H94: =$B94+6 -> 2018-04-29
A95: ICU | B95: AJR | C95: AJR | D95: WRA | E95: WRA | F95: AJR | G95: DK | H95: DK
A96: AGB | B96: DJM | C96: DBC | D96: SPF | E96: RAC | F96: GAH | G96: RJR | H96: RJR
A97: BHS | B97: MFS | G97: HLT | H97: PJC
A98: BACKUP | B98: RJR | C98: MFS | D98: HLT | E98: REC | F98: CJM | G98: CJM | H98: CJM
A99: Leave | B99: LDP
A100: =A94+1 -> 13 | B100: =CurrentRosterStart+7*(A100+2) -> 2018-04-30 | C100: =$B100+1 -> 2018-05-01 | D100: =$B100+2 -> 2018-05-02 | E100: =$B100+3 -> 2018-05-03 | F100: =$B100+4 -> 2018-05-04 | G100: =$B100+5 -> 2018-05-05 | H100: =$B100+6 -> 2018-05-06
A101: ICU | B101: MAK | C101: MAK | D101: AJR | E101: AJR | F101: WRA | G101: WRA | H101: WRA
A102: AGB | B102: PJC | C102: PRS | D102: LDP | E102: REC | F102: JGE | G102: DBC | H102: DBC
A103: BHS | G103: RAC
A104: BACKUP | B104: LDP | C104: HLT | D104: PJC | E104: PRS | F104: DBC | G104: LDP | H104: LDP
A105: Leave | B105: RCG
A106: =A100+1 -> 14 | B106: =CurrentRosterStart+7*(A106+2) -> 2018-05-07 | C106: =$B106+1 -> 2018-05-08 | D106: =$B106+2 -> 2018-05-09 | E106: =$B106+3 -> 2018-05-10 | F106: =$B106+4 -> 2018-05-11 | G106: =$B106+5 -> 2018-05-12 | H106: =$B106+6 -> 2018-05-13
A107: ICU | B107: MAK | C107: MAK | D107: WRA | E107: WRA | F107: WS | G107: WS | H107: WS
A108: AGB | B108: AJR | C108: JGE | D108: DBC | E108: LDP | F108: RAC | G108: GAH | H108: GAH
A109: BHS | B109: JGE
A110: BACKUP | B110: GAH | C110: DBC | D110: DRP | E110: MBW | F110: AJR | G110: AJR | H110: AJR
A111: Leave | B111: SPF ?GBH DJM CJM
A112: =A106+1 -> 15 | B112: =CurrentRosterStart+7*(A112+2) -> 2018-05-14 | C112: =$B112+1 -> 2018-05-15 | D112: =$B112+2 -> 2018-05-16 | E112: =$B112+3 -> 2018-05-17 | F112: =$B112+4 -> 2018-05-18 | G112: =$B112+5 -> 2018-05-19 | H112: =$B112+6 -> 2018-05-20
A113: ICU | B113: RCG | C113: RCG | D113: AJR | E113: AJR | F113: WRA | G113: RCG | H113: RCG
A114: AGB | B114: CJM | C114: PRS | D114: PJC | E114: DBC | F114: REC | G114: LDP | H114: LDP
A115: BHS | B115: DJM
A116: BACKUP | B116: LDP | C116: SPF | D116: JGE | E116: CJM | F116: PRS | G116: PRS | H116: PRS
A117: Leave | B117: RAC
A118: =A112+1 -> 16 | B118: =CurrentRosterStart+7*(A118+2) -> 2018-05-21 | C118: =$B118+1 -> 2018-05-22 | D118: =$B118+2 -> 2018-05-23 | E118: =$B118+3 -> 2018-05-24 | F118: =$B118+4 -> 2018-05-25 | G118: =$B118+5 -> 2018-05-26 | H118: =$B118+6 -> 2018-05-27
A119: ICU | B119: WRA | C119: WRA | D119: DBC | E119: DBC | F119: RJR | G119: RJR | H119: RJR
A120: AGB | B120: RJR | C120: HLT | D120: MFS | E120: LDP | F120: GBH | G120: GBH | H120: GBH
A121: BHS | F121: JGE
A122: BACKUP | B122: AJR | C122: GBH | D122: DJM | E122: CJM | F122: HLT | G122: RJR | H122: RJR
A123: Leave | B123: RAC AJR(TH-F)
A124: =A118+1 -> 17 | B124: =CurrentRosterStart+7*(A124+2) -> 2018-05-28 | C124: =$B124+1 -> 2018-05-29 | D124: =$B124+2 -> 2018-05-30 | E124: =$B124+3 -> 2018-05-31 | F124: =$B124+4 -> 2018-06-01 | G124: =$B124+5 -> 2018-06-02 | H124: =$B124+6 -> 2018-06-03
A125: ICU | B125: RCG | C125: RCG | D125: WRA | E125: WRA | F125: DBC | G125: DBC | H125: DBC
A126: AGB | B126: GAH | C126: PJC | D126: SPF | E126: DJM | F126: JGE | G126: JGE | H126: JGE
A127: BHS | E127: PJC | H127: DJM
A128: BACKUP | B128: DJM | C128: PRS | D128: RJR | E128: HLT | F128: RJR | G128: RJR | H128: RJR
A129: Leave | B129: LDP CJM/DRP/AJR(TH-F)
A130: =A124+1 -> 18 | B130: =CurrentRosterStart+7*(A130+2) -> 2018-06-04 | C130: =$B130+1 -> 2018-06-05 | D130: =$B130+2 -> 2018-06-06 | E130: =$B130+3 -> 2018-06-07 | F130: =$B130+4 -> 2018-06-08 | G130: =$B130+5 -> 2018-06-09 | H130: =$B130+6 -> 2018-06-10
A131: ICU | B131: MAK | C131: MAK | D131: WRA | E131: WRA | F131: MAK | G131: MAK | H131: MAK
A132: AGB | B132: RAC | C132: GAH | D132: SPF | E132: GBH | F132: DBC | G132: SPF | H132: SPF
A133: BHS | B133: PJC | F133: HLT
A134: BACKUP | B134: PRS | C134: DBC | D134: RAC | E134: REC | F134: RAC | G134: RAC | H134: RAC
A135: Leave | B135: CJM LDP DRP MFS AJR(M-W)
A136: =A130+1 -> 19 | B136: =CurrentRosterStart+7*(A136+2) -> 2018-06-11 | C136: =$B136+1 -> 2018-06-12 | D136: =$B136+2 -> 2018-06-13 | E136: =$B136+3 -> 2018-06-14 | F136: =$B136+4 -> 2018-06-15 | G136: =$B136+5 -> 2018-06-16 | H136: =$B136+6 -> 2018-06-17
A137: ICU | B137: RCG | C137: RCG | D137: AJR | E137: AJR | F137: RCG | G137: DK | H137: DK
A138: AGB | B138: DJM | C138: LDP | D138: GBH | E138: DJM | F138: SPF | G138: DJM | H138: DJM
A139: BHS | E139: HLT | G139: MFS
A140: BACKUP | B140: MFS | C140: SPF | D140: DBC | E140: JGE | F140: AJR | G140: AJR | H140: AJR
A141: Leave | B141: DRP
A142: =A136+1 -> 20 | B142: =CurrentRosterStart+7*(A142+2) -> 2018-06-18 | C142: =$B142+1 -> 2018-06-19 | D142: =$B142+2 -> 2018-06-20 | E142: =$B142+3 -> 2018-06-21 | F142: =$B142+4 -> 2018-06-22 | G142: =$B142+5 -> 2018-06-23 | H142: =$B142+6 -> 2018-06-24
A143: ICU | B143: MAK | C143: MAK | D143: WRA | E143: WRA | F143: LDP | G143: LDP | H143: LDP
A144: AGB | B144: RJR | C144: HLT | D144: GAH | E144: JGE | F144: CJM | G144: CJM | H144: CJM
A145: BHS | B145: CJM | F145: MFS
A146: BACKUP | B146: GBH | C146: MBW | D146: DJM | E146: RJR | F146: PJC | G146: PJC | H146: PJC
A147: Leave | B147: DRP PRS HLT
A148: =A142+1 -> 21 | B148: =CurrentRosterStart+7*(A148+2) -> 2018-06-25 | C148: =$B148+1 -> 2018-06-26 | D148: =$B148+2 -> 2018-06-27 | E148: =$B148+3 -> 2018-06-28 | F148: =$B148+4 -> 2018-06-29 | G148: =$B148+5 -> 2018-06-30 | H148: =$B148+6 -> 2018-07-01
A149: ICU | B149: RCG | C149: RCG | D149: DBC | E149: DBC | F149: MAK | G149: RCG | H149: RCG
A150: AGB | B150: PJC | C150: AJR | D150: GAH | E150: AJR | F150: SPF | G150: GAH | H150: GAH
A151: BHS | C151: PRS
A152: BACKUP | B152: HLT | C152: DJM | D152: DJM | E152: PRS | F152: GAH | G152: SPF | H152: SPF
A153: Leave | B153: JGE WRA
A154: =A148+1 -> 22 | B154: =CurrentRosterStart+7*(A154+2) -> 2018-07-02 | C154: =$B154+1 -> 2018-07-03 | D154: =$B154+2 -> 2018-07-04 | E154: =$B154+3 -> 2018-07-05 | F154: =$B154+4 -> 2018-07-06 | G154: =$B154+5 -> 2018-07-07 | H154: =$B154+6 -> 2018-07-08
A155: ICU | B155: MAK | C155: MAK | D155: DBC | E155: DBC | F155: RCG | G155: MAK | H155: MAK
A156: AGB | B156: CJM | C156: RAC | D156: GAH | E156: SPF | F156: MFS | G156: REC | H156: REC
A157: BHS | B157: PRS | C157: HLT | F157: CJM
A158: BACKUP | B158: REC | C158: JGE | D158: CJM | E158: GAH | F158: LDP | G158: DJM | H158: DJM
A159: Leave | B159: JGE RJR AJR HLT WRA
A160: =A154+1 -> 23 | B160: =CurrentRosterStart+7*(A160+2) -> 2018-07-09 | C160: =$B160+1 -> 2018-07-10 | D160: =$B160+2 -> 2018-07-11 | E160: =$B160+3 -> 2018-07-12 | F160: =$B160+4 -> 2018-07-13 | G160: =$B160+5 -> 2018-07-14 | H160: =$B160+6 -> 2018-07-15
A161: ICU | B161: RCG | C161: RCG | D161: MAK | E161: MAK | F161: GBH | G161: GBH | H161: GBH
A162: AGB | B162: LDP | C162: PRS | D162: HLT | E162: PJC | F162: DJM | G162: MFS | H162: MFS
A163: BHS | B163: RAC | E163: RAC | G163: BBH
A164: BACKUP | B164: HLT | C164: RAC | D164: DRP | E164: DJM | F164: CJM | G164: CJM | H164: CJM
A165: Leave | B165: JGE SPF HLT WRA
A166: =A160+1 -> 24 | B166: =CurrentRosterStart+7*(A166+2) -> 2018-07-16 | C166: =$B166+1 -> 2018-07-17 | D166: =$B166+2 -> 2018-07-18 | E166: =$B166+3 -> 2018-07-19 | F166: =$B166+4 -> 2018-07-20 | G166: =$B166+5 -> 2018-07-21 | H166: =$B166+6 -> 2018-07-22
A167: ICU | B167: MAK | C167: MAK | D167: AJR | E167: AJR | F167: WS | G167: WS | H167: WS
A168: AGB | B168: DJM | C168: CJM | D168: REC | E168: RAC | F168: SPF | G168: SPF | H168: SPF
A169: BHS | E169: MFS
A170: BACKUP | B170: AJR | C170: PJC | D170: GBH | E170: SPF | F170: GAH | G170: GAH | H170: GAH
A171: Leave | B171: DBC WRA
A172: =A166+1 -> 25 | B172: =CurrentRosterStart+7*(A172+2) -> 2018-07-23 | C172: =$B172+1 -> 2018-07-24 | D172: =$B172+2 -> 2018-07-25 | E172: =$B172+3 -> 2018-07-26 | F172: =$B172+4 -> 2018-07-27 | G172: =$B172+5 -> 2018-07-28 | H172: =$B172+6 -> 2018-07-29
A173: ICU | B173: RCG | C173: RCG | D173: AJR | E173: AJR | F173: WRA | G173: WRA | H173: WRA
A174: AGB | B174: MFS | C174: PRS | D174: PJC | E174: RJR | F174: HLT | G174: HLT | H174: HLT
A175: BHS | H175: BBH
A176: BACKUP | B176: PJC | C176: RJR | D176: MBW | E176: MFS | F176: REC | G176: REC | H176: REC
A177: Leave | B177: DBC RAC
A178: =A172+1 -> 26 | B178: =CurrentRosterStart+7*(A178+2) -> 2018-07-30 | C178: =$B178+1 -> 2018-07-31 | D178: =$B178+2 -> 2018-08-01 | E178: =$B178+3 -> 2018-08-02 | F178: =$B178+4 -> 2018-08-03 | G178: =$B178+5 -> 2018-08-04 | H178: =$B178+6 -> 2018-08-05
A179: ICU | B179: MAK | C179: MAK | D179: WRA | E179: WRA | F179: AJR | G179: AJR | H179: AJR
A180: AGB | B180: DBC | C180: AJR | D180: REC | E180: RJR | F180: LDP | G180: DBC | H180: DBC
A181: BHS | F181: BBH
A182: BACKUP | B182: LDP | C182: REC | D182: GAH | E182: PRS | F182: GBH | G182: GBH | H182: GBH
A183: Leave | B183: RAC MFS
A184: =A178+1 -> 27 | B184: =CurrentRosterStart+7*(A184+2) -> 2018-08-06 | C184: =$B184+1 -> 2018-08-07 | D184: =$B184+2 -> 2018-08-08 | E184: =$B184+3 -> 2018-08-09 | F184: =$B184+4 -> 2018-08-10 | G184: =$B184+5 -> 2018-08-11 | H184: =$B184+6 -> 2018-08-12
A185: ICU | B185: RCG | C185: RCG | D185: LDP | E185: LDP | F185: AJR | G185: DK | H185: DK
A186: AGB | B186: DJM | C186: JGE | D186: HLT | E186: PJC | F186: HLT | G186: PRS | H186: PRS
A187: BHS | B187: PJC | C187: PRS | E187: DJM
A188: BACKUP | B188: GAH | C188: SPF | D188: DBC | E188: GAH | F188: JGE | G188: JGE | H188: JGE
A189: Leave | B189: RAC MFS REC
A190: =A184+1 -> 28 | B190: =CurrentRosterStart+7*(A190+2) -> 2018-08-13 | C190: =$B190+1 -> 2018-08-14 | D190: =$B190+2 -> 2018-08-15 | E190: =$B190+3 -> 2018-08-16 | F190: =$B190+4 -> 2018-08-17 | G190: =$B190+5 -> 2018-08-18 | H190: =$B190+6 -> 2018-08-19
A191: ICU | B191: RJR | C191: RJR | D191: WRA | E191: WRA | F191: LDP | G191: LDP | H191: LDP
A192: AGB | B192: AJR | C192: SPF | D192: GAH | E192: JGE | F192: PJC | G192: AJR | H192: AJR
A193: BHS | B193: CJM | H193: PJC
A194: BACKUP | B194: PRS | C194: JGE | D194: DJM | E194: MBW | F194: DBC | G194: DBC | H194: DBC
A195: Leave | B195: REC RAC MFS RCG
A196: =A190+1 -> 29 | B196: =CurrentRosterStart+7*(A196+2) -> 2018-08-20 | C196: =$B196+1 -> 2018-08-21 | D196: =$B196+2 -> 2018-08-22 | E196: =$B196+3 -> 2018-08-23 | F196: =$B196+4 -> 2018-08-24 | G196: =$B196+5 -> 2018-08-25 | H196: =$B196+6 -> 2018-08-26
A197: ICU | B197: MAK | C197: MAK | D197: AJR | E197: AJR | F197: LDP | G197: RCG | H197: RCG
A198: AGB | B198: DJM | C198: PRS | D198: HLT | E198: REC | F198: RJR | G198: RAC | H198: RAC
A199: BHS | G199: DJM
A200: BACKUP | B200: REC | C200: RAC | D200: DRP | E200: LDP | F200: CJM | G200: CJM | H200: CJM
A201: Leave | B201: MFS
A202: =A196+1 -> 30 | B202: =CurrentRosterStart+7*(A202+2) -> 2018-08-27 | C202: =$B202+1 -> 2018-08-28 | D202: =$B202+2 -> 2018-08-29 | E202: =$B202+3 -> 2018-08-30 | F202: =$B202+4 -> 2018-08-31 | G202: =$B202+5 -> 2018-09-01 | H202: =$B202+6 -> 2018-09-02
... 143 more rows

Sheet ICUextraDays
A1: =CurrentYear -> 2018
B3: WEEKDAY SHIFTS | D3: WEEKEND SHIFTS | G3: WEEKDAY SHIFTS EXPECTED TO DO AS LEAVE COVER FOR ADS/RCG
B4: BUDGETED | C4: ALLOCATED | D4: BUDGETED | E4: ALLOCATED
A5: =Worksheet!K18 -> RCG | B5: 20 | C5: =Worksheet!P18/2 -> 8.5 | D5: 5 | E5: =Worksheet!R18 -> 5 | G5: =C5-B5 -> -11.5
A6: =Worksheet!K19 -> DBC | B6: 9 | C6: =Worksheet!P19/2 -> 3.5 | D6: 5 | E6: =Worksheet!R19 -> 5 | G6: =C6-B6 -> -5.5
A7: =Worksheet!K20 -> GBH | B7: 9 | C7: =Worksheet!P20/2 -> 0 | D7: 5 | E7: =Worksheet!R20 -> 5 | G7: -9
A8: =Worksheet!K21 -> WRA | B8: 29 | C8: =Worksheet!P21/2 -> 12.5 | D8: 10 | E8: =Worksheet!R21 -> 6 | G8: -16.5
A9: =Worksheet!K22 -> LDP | B9: 10 | C9: =Worksheet!P22/2 -> 4 | D9: 5 | E9: =Worksheet!R22 -> 6 | G9: -6
A10: =Worksheet!K23 -> RJR | B10: 8 | C10: =Worksheet!P23/2 -> 4 | D10: 5 | E10: =Worksheet!R23 -> 5 | G10: -4
A11: =Worksheet!K24 -> AJR | B11: 19 | C11: =Worksheet!P24/2 -> 8.5 | D11: 5 | E11: =Worksheet!R24 -> 5 | G11: -10.5
A12: =Worksheet!K25 -> DK | B12: 0 | C12: =Worksheet!P25/2 -> 0 | D12: 5 | E12: =Worksheet!R25 -> 4 | G12: 0
A13: =Worksheet!K26 -> WS | B13: 0 | C13: =Worksheet!P26/2 -> 0 | D13: 6 | E13: =Worksheet!R26 -> 6 | G13: 0
A14: =Worksheet!K27 -> MAK | B14: 0 | C14: =Worksheet!P27/2 -> 11.25 | E14: =Worksheet!R27 -> 5
A15: =Worksheet!K28 -> LOC | B15: 11 | C15: =Worksheet!P28/2 -> 0 | D15: 5 | E15: =Worksheet!R28 -> 0
A16: =Worksheet!K29 -> BHS | C16: =Worksheet!P29/2 -> 0 | E16: =Worksheet!R29 -> 0
A18: TOTAL | B18: =SUM(B5:B15) -> 115 | C18: =SUM(C5:C15) -> 52.25 | D18: =SUM(D5:D15) -> 56 | E18: =SUM(E5:E13) -> 47
B19: 104 | D19: 52
A21: nb 54 WEEK YEAR TO ADJUST TO FEB 1 START
A26: PLANNING
B27: =CurrentYear-1 -> 2017
B29: WEEKDAY SHIFTS | D29: WEEKEND SHIFTS | H29: HOURS/WEEK
B30: BUDGETED | C30: ALLOCATED | D30: BUDGETED | E30: ALLOCATED | H30: TOTAL | J30: CLIN | L30: NONCLIN
A31: =Worksheet!K18 -> RCG
A32: =Worksheet!K19 -> DBC
A33: =Worksheet!K20 -> GBH
A34: =Worksheet!K21 -> WRA
A35: =Worksheet!K22 -> LDP
A36: =Worksheet!K23 -> RJR
A37: =Worksheet!K24 -> AJR
A38: =Worksheet!K25 -> DK
A39: =Worksheet!K26 -> WS
A40: =Worksheet!K27 -> MAK
A41: =Worksheet!K28 -> LOC
A42: =Worksheet!K29 -> BHS
B44: =CurrentYear -> 2018
B46: WEEKDAY SHIFTS | D46: WEEKEND SHIFTS | H46: HOURS/WEEK
B47: BUDGETED | C47: ALLOCATED | D47: BUDGETED | E47: ALLOCATED | H47: TOTAL | J47: CLIN | L47: NONCLIN
A48: =Worksheet!K18 -> RCG | B48: 17 | D48: 5
A49: =Worksheet!K19 -> DBC | B49: 8 | D49: 5
A50: =Worksheet!K20 -> GBH | B50: 0 | D50: 5
A51: =Worksheet!K21 -> WRA | B51: 31 | D51: 6
A52: =Worksheet!K22 -> LDP | B52: 8 | D52: 5
A53: =Worksheet!K23 -> RJR | B53: 8 | D53: 5
A54: =Worksheet!K24 -> AJR | B54: 10 | D54: 5
A55: =Worksheet!K25 -> DK | D55: 5
A56: =Worksheet!K26 -> WS | D56: 5
A57: =Worksheet!K27 -> MAK | B57: 22 | D57: 6
A58: =Worksheet!K28 -> LOC | D58: 0
A59: =Worksheet!K29 -> BHS
A60: TOTAL | B60: =SUM(B48:B59) -> 104 | D60: =SUM(D48:D59) -> 52

Sheet PubHol
A1: PUBLIC HOLIDAYS WORKED
B3: EASTER | H3: CHRISTMAS | M3: TOTAL PUBLIC HOLIDAYS (incl associated weekends from 2009)
B4: ICU-F/S/S | C4: ICU-M | D4: AGB-F | E4: AGB-S | F4: AGB-Su | G4: AGB-M | H4: ICU-25 | I4: ICU-26 | J4: AGB-25 | K4: AGB-26 | M4: RDA | N4: DBC | O4: PJC | P4: GLTC | Q4: RAC | R4: REC | S4: JGE | T4: SPF | U4: RCG | V4: GBH | W4: GAH | X4: DJM | Y4: CJM | Z4: LDP | AA4: RJR | AB4: AJR | AC4: MFS | AD4: PRS | AE4: NMS | AF4: ADS | AG4: HLT | AH4: PNT | AI4: MVT | AJ4: WRA | AO4: MLB | AP4: CVDH | AQ4: MBW | AR4: DRP
A5: 2005 | B5: MVT | C5: ADS | D5: RDA | E5: DRP | F5: DRP | G5: DBC | H5: MVT | I5: RCG | J5: MFS | K5: DBC | M5: 1 | N5: 4 | P5: 3 | U5: 3 | V5: 3 | W5: 1 | Z5: 1 | AA5: 0 | AC5: 4 | AE5: 1 | AF5: 4 | AH5: 4 | AI5: 5 | AQ5: 0 | AR5: 3
A6: 2006 | B6: RJR | C6: RCG | D6: MBW | E6: PNT | F6: PNT | G6: MBW | H6: CJM | I6: CJM | J6: DBC | K6: LDP | N6: 1 | U6: 2 | V6: 1 | W6: 1 | Y6: 2 | Z6: 3 | AA6: 4 | AC6: 1 | AE6: 3 | AF6: 4 | AH6: 5 | AI6: 0 | AQ6: 3 | AR6: 1
A7: 2007 | B7: CJM | C7: ADS | D7: MFS | E7: GAH | F7: GAH | G7: LDP | H7: RCG | I7: DBC | J7: GBH | K7: LDP | N7: 1 | U7: 2 | V7: 2 | W7: 3 | Y7: 3 | Z7: 2 | AA7: 1 | AB7: 2 | AC7: 2 | AE7: 0 | AF7: 3 | AH7: 1 | AI7: 1 | AQ7: 0 | AR7: 1
A8: 2008 | B8: CJM | C8: ADS | D8: DJM | E8: AJR | F8: AJR | G8: NMS | H8: RJR | I8: RCG | J8: NMS | K8: DRP | N8: 2 | U8: 2 | V8: 0 | W8: 2 | X8: 1 | Y8: 4 | Z8: 1 | AA8: 1 | AB8: 5 | AC8: 1 | AE8: 2 | AF8: 2 | AG8: 2 | AH8: 2 | AI8: 2 | AQ8: 2 | AR8: 2
A9: 2009 | B9: AJR | C9: RCG | D9: NMS | E9: HLT | F9: HLT | G9: CJM | H9: LDP | I9: LDP | J9: MFS | K9: DJM | N9: 1 | U9: 2 | V9: 3 | W9: 2 | X9: 6 | Y9: 4 | Z9: 3 | AA9: 3 | AB9: 8 | AC9: 2 | AE9: 2 | AF9: 3 | AG9: 4 | AH9: 2 | AI9: 1 | AQ9: 1 | AR9: 1
A10: 2010 | B10: DBC | C10: ADS | D10: DJM | E10: GBH | F10: GBH | G10: RAC | H10: AJR | I10: AJR | J10: GAH | K10: GAH | N10: 3 | Q10: 1 | U10: 2 | V10: 2 | W10: 3 | X10: 3 | Y10: 0 | Z10: 3 | AA10: 0 | AB10: 6 | AC10: 2 | AF10: 6 | AG10: 3 | AQ10: 2 | AR10: 3
A11: 2011 | B11: AJR | C11: RCG | D11: MFS | E11: RAC | F11: RAC | G11: DRP | H11: DBC | I11: ADS | J11: MBW | K11: GBH | N11: 3 | Q11: 2 | U11: 5 | V11: 2 | W11: 3 | X11: 4 | Y11: 0 | Z11: 3 | AA11: 2 | AB11: 9 | AC11: 3 | AF11: 2 | AG11: 4 | AQ11: 2 | AR11: 1
A12: 2012 | B12: LDP | C12: RCG | D12: HLT | E12: HLT | F12: HLT | G12: HLT | H12: ADS | I12: RJR | J12: RAC | K12: GBH | N12: 2 | Q12: 1 | U12: 2 | V12: 3 | W12: 2 | X12: 2 | Y12: 3 | Z12: 6 | AA12: 3 | AB12: 1 | AC12: 1 | AF12: 1 | AG12: 4 | AP12: 1 | AQ12: 1 | AR12: 1
A13: 2013 | B13: CJM | C13: AWC | D13: RJR | E13: RJR | F13: HLT | G13: HLT | H13: DBC | I13: DBC | J13: DRP | K13: GAH | N13: 3 | Q13: 1 | U13: 1 | V13: 2 | W13: 1 | X13: 2 | Y13: 3 | Z13: 1 | AA13: 2 | AB13: 1 | AC13: 2 | AD13: 0 | AF13: 2 | AG13: 3 | AO13: 0 | AP13: 2 | AQ13: 1 | AR13: 1
A14: 2014 | B14: ADS | C14: DBC | D14: MLB | E14: MLB | F14: MBW | G14: MBW | H14: LDP | I14: RJR | J14: MFS | K14: HLT | N14: 2 | Q14: 2 | T14: 1 | U14: 3 | V14: 0 | W14: 1 | X14: 0 | Y14: 0 | Z14: 0 | AA14: 5 | AB14: 4 | AC14: 2 | AD14: 0 | AF14: 3 | AG14: 3 | AO14: 3 | AP14: 1 | AQ14: 2 | AR14: 1
A15: 2015 | B15: DBC | C15: RCG | D15: SPF | E15: SPF | F15: GAH | G15: GAH | H15: CJM | I15: CJM | J15: DJM | K15: HLT | N15: 7 | Q15: 1 | S15: 2 | T15: 4 | U15: 4 | V15: 3 | W15: 4 | X15: 1 | Y15: 3 | Z15: 2 | AA15: 4 | AB15: 3 | AC15: 2 | AD15: 3 | AF15: 1 | AG15: 3 | AO15: 1 | AP15: 0 | AQ15: 1 | AR15: 2
A16: 2016 | B16: RCG | C16: LDP | D16: DRP | E16: DRP | F16: RAC | G16: RAC | H16: GBH | I16: RCG | J16: MLB | K16: LDP | N16: 0 | Q16: 3 | S16: 0 | T16: 3 | U16: 7 | V16: 2 | W16: 4 | X16: 3 | Y16: 3 | Z16: 7 | AA16: 4 | AB16: 3 | AC16: 2 | AD16: 5 | AF16: 0 | AG16: 2 | AO16: 2 | AP16: 1 | AQ16: 1 | AR16: 2
A17: 2017 | B17: GBH | C17: RCG | D17: DBC | E17: DBC | F17: JGE | G17: JGE | H17: RCG | I17: RCG | J17: HLT | K17: MFS | N17: 7 | Q17: 3 | S17: 4 | T17: 2 | U17: 4 | V17: 3 | W17: 2 | X17: 1 | Y17: 3 | Z17: 2 | AA17: 3 | AB17: 4 | AC17: 2 | AD17: 5 | AG17: 2 | AJ17: 2
A18: 2018
A19: 2019
E20: PER YEAR ON CALL
B21: StartYear | C21: YearsOnCall | E21: Easter days | F21: Xmas days | G21: 2025-12-01
A22: =Worksheet!K5 -> PJC | B22: =HLOOKUP(A22,$N$4:$AQ$26,23,FALSE) -> 2018 | C22: =CurrentYear-B22 -> 0 | E22: =COUNTIF($B$5:$G$19,A22)/C22 ->  | F22: =COUNTIF($H$5:$K$19,A22)/C22 ->  | G22: =(COUNTIF($H$5:$H$19,A22)+COUNTIF($J$5:$J$19,A22))/C22 ->  | L22: AVG(nonICU) | N22: =IF(N25="Y","NA",AVERAGE(N5:N19)) -> NA | P22: =IF(P25="Y","NA",AVERAGE(P5:P19)) -> 3.0 | Q22: 1.8 | S22: 2.0 | T22: 2.5 | U22: NA | V22: NA | W22: 2.2 | X22: 2.3 | Y22: NA | Z22: NA | AA22: NA | AB22: NA | AC22: 2.0 | AD22: 2.6 | AE22: 1.6 | AF22: NA | AG22: 3.0 | AH22: =IF(AH25="Y","NA",AVERAGE(AH5:AH19)) -> 2.8 | AI22: =IF(AI25="Y","NA",AVERAGE(AI5:AI19)) -> 1.8 | AJ22: =IF(AJ25="Y","NA",AVERAGE(AJ5:AJ19)) -> NA | AM22: =AVERAGE(N22:AJ22) -> 2.3 | AO22: =IF(AO25="Y","NA",AVERAGE(AO5:AO19)) -> 1.5 | AP22: =IF(AP25="Y","NA",AVERAGE(AP5:AP19)) -> 1.0 | AQ22: =IF(AQ25="Y","NA",AVERAGE(AQ5:AQ19)) -> 1.3 | AR22: =IF(AR25="Y","NA",AVERAGE(AR5:AR19)) -> 1.6
A23: =Worksheet!K6 -> RAC | B23: 2010 | C23: 8 | E23: =COUNTIF($B$5:$G$19,A23)/C23 -> 0.6 | F23: =COUNTIF($H$5:$K$19,A23)/C23 -> 0.1 | G23: =(COUNTIF($H$5:$H$19,A23)+COUNTIF($J$5:$J$19,A23))/C23 -> 0.1 | L23: AVG(ICU) | N23: =IF(N25="Y",AVERAGE(N5:N19),"NA") -> 2.8 | Q23: =IF(Q25="Y",AVERAGE(Q5:Q19),"NA") -> NA | U23: 3.0 | V23: 2.0 | W23: NA | X23: NA | Y23: 2.3 | Z23: 2.6 | AA23: 2.5 | AB23: 4.2 | AC23: NA | AD23: NA | AF23: 2.6 | AG23: NA | AH23: =IF(AH25="Y",AVERAGE(AH5:AH19),"NA") -> NA | AI23: =IF(AI25="Y",AVERAGE(AI5:AI19),"NA") -> NA | AJ23: =IF(AJ25="Y",AVERAGE(AJ5:AJ19),"NA") -> 2.0 | AM23: =AVERAGE(N23:AJ23) -> 2.7 | AP23: =IF(AP25="Y",AVERAGE(AP5:AP19),"NA") -> NA | AQ23: =IF(AQ25="Y",AVERAGE(AQ5:AQ19),"NA") -> NA | AR23: =IF(AR25="Y",AVERAGE(AR5:AR19),"NA") -> NA
A24: =Worksheet!K7 -> REC | B24: 2018 | C24: 0
A25: =Worksheet!K8 -> JGE | B25: 2015 | C25: 3 | E25: 0.7 | F25: 0.0 | G25: 0.0 | L25: ICU | N25: Y | Q25: N | S25: N | T25: N | U25: Y | V25: Y | W25: N | X25: N | Y25: Y | Z25: Y | AA25: Y | AB25: Y | AC25: N | AD25: N | AF25: Y | AG25: N | AJ25: Y | AP25: N | AQ25: N | AR25: N
A26: =Worksheet!K9 -> SPF | B26: 2014 | C26: 4 | E26: 0.5 | F26: 0.0 | G26: 0.0 | L26: START YEAR | N26: 2005 | O26: 2018 | Q26: 2010 | R26: 2018 | S26: 2015 | T26: 2014 | U26: 2005 | V26: 2005 | W26: 2005 | X26: 2008 | Y26: 2005 | Z26: 2005 | AA26: 2005 | AB26: 2007 | AC26: 2005 | AD26: 2013 | AF26: 2005 | AG26: 2008 | AJ26: 2017 | AO26: 2013 | AP26: 2012 | AQ26: 2005 | AR26: 2005
A27: =Worksheet!K10 -> GAH | B27: 2005 | C27: 13 | E27: 0.3 | F27: 0.2 | G27: 0.1
A28: =Worksheet!K11 -> DJM | B28: 2008 | C28: 10 | E28: 0.2 | F28: 0.2 | G28: 0.1
A29: =Worksheet!K12 -> CJM | B29: 2005 | C29: 13 | E29: 0.3 | F29: 0.3 | G29: 0.2
A30: =Worksheet!K13 -> MFS | B30: 2005 | C30: 13 | E30: 0.2 | F30: 0.3 | G30: 0.2
A31: =Worksheet!K14 -> PRS | B31: 2013 | C31: 5 | E31: 0.0 | F31: 0.0 | G31: 0.0
A32: =Worksheet!K15 -> HLT | B32: 2008 | C32: 10 | E32: 0.8 | F32: 0.3 | G32: 0.1
A33: =Worksheet!K16 -> DRP
A34: =Worksheet!K17 -> MBW
A35: =Worksheet!K18 -> RCG | B35: =HLOOKUP(A35,$N$4:$AQ$26,23,FALSE) -> 2005 | C35: 13 | E35: 0.5 | F35: 0.5 | G35: 0.2
A36: =Worksheet!K19 -> DBC | B36: 2005 | C36: 13 | E36: 0.5 | F36: 0.5 | G36: 0.2
A37: =Worksheet!K20 -> GBH | B37: 2005 | C37: 13 | E37: 0.2 | F37: 0.3 | G37: 0.2
A38: =Worksheet!K21 -> WRA | B38: 2017 | C38: 1 | E38: 0.0 | F38: 0.0 | G38: 0.0
A39: =Worksheet!K22 -> LDP | B39: 2005 | C39: 13 | E39: 0.2 | F39: 0.5 | G39: 0.2
A40: =Worksheet!K23 -> RJR | B40: 2005 | C40: 13 | E40: 0.2 | F40: 0.2 | G40: 0.1
A41: =Worksheet!K24 -> AJR | B41: 2007 | C41: 11 | E41: 0.4 | F41: 0.2 | G41: 0.1
A42: =Worksheet!K25 -> DK
A43: =Worksheet!K26 -> WS
A44: =Worksheet!K27 -> MAK
A45: =Worksheet!K28 -> LOC
A46: =Worksheet!K29 -> BHS

Sheet Backup (hidden)
A1: BACKUP ROSTER PLANNER
A2: Column1 | B2: Column2 | C2: Column3 | D2: Column4 | E2: Column5 | F2: Column6 | G2: Column7 | H2: Column8 | I2: Column9 | J2: Column10 | K2: Column11 | L2: Column12 | M2: Column13 | N2: Column14
B3: JAN | C3: FEB | D3: MAR | E3: APR | F3: MAY | G3: JUN | H3: JUL | I3: AUG | J3: SEP | K3: OCT | L3: NOV | M3: DEC | N3: JAN
A4: =Worksheet!K5 -> PJC
A5: =Worksheet!K6 -> RAC
A6: =Worksheet!K8 -> JGE
A7: =Worksheet!K9 -> SPF
A8: =Worksheet!K10 -> GAH
A9: =Worksheet!K11 -> DJM
A10: =Worksheet!K12 -> CJM
A11: =Worksheet!K13 -> MFS
A12: =Worksheet!K14 -> PRS
A13: =Worksheet!K15 -> HLT
A14: =Worksheet!K16 -> DRP
A15: =Worksheet!K17 -> MBW
A16: =Worksheet!K18 -> RCG
A17: =Worksheet!K19 -> DBC
A18: =Worksheet!K20 -> GBH
A19: =Worksheet!K21 -> WRA
A20: =Worksheet!K22 -> LDP
A21: =Worksheet!K23 -> RJR
A22: =Worksheet!K24 -> AJR
A23: =Worksheet!K25 -> DK

Sheet Requests
A1: =CurrentYear -> 2018 | B1: Requests and planning
B4: BHS | C4: ICU | D4: AGB | E4: NOT ONCALLS | F4: LEAVE | G4: PUBHOL
A5: =Worksheet!L40 -> Christie
A6: =Worksheet!L41 -> Commons
A7: =Worksheet!L42 -> Connell
A8: =Worksheet!L43 -> Cowell
A9: =Worksheet!L44 -> Evans
A10: =Worksheet!L45 -> Frost
A11: =Worksheet!L46 -> Gazzard
A12: =Worksheet!L47 -> Henderson
A13: =Worksheet!L48 -> Hughes
A14: =Worksheet!L49 -> McIntyre
A15: =Worksheet!L50 -> Mitchell
A16: =Worksheet!L51 -> Paxton
A17: =Worksheet!L52 -> Phillips
A18: =Worksheet!L53 -> Ray
A19: =Worksheet!L54 -> Richardson
A20: =Worksheet!L55 -> Shaw
A21: =Worksheet!L56 -> Shea
A22: =Worksheet!L57 -> Tan
A23: =Worksheet!L59 -> BHS
A24: =Worksheet!L60 -> Ainslie
A25: =Worksheet!L61 -> Sylvester
A26: =Worksheet!L62 -> Dharshi

Sheet Generator (hidden)
A1: PARTNERS SHARING AGB ROSTER
AG2: Avg number of each night | AH2: Avg number of all M-F | AJ2: avg of each night by EFT
B3: SEQUENCE | D3: All days | J3: RANDOMISED LISTS FOR SEQUENCING | X3: 1 | Y3: 2 | Z3: 3 | AA3: 4 | AB3: 5 | AC3: 6 | AD3: 7
B4: POSITION | D4: total | E4: off mean | H4: 3day w/e | I4: FRACTION | J4: SAT | L4: M_Th | X4: Mon | Y4: Tue | Z4: Wed | AA4: Thu | AB4: Fri | AC4: Sat | AD4: Sun | AE4: Mon-Thu
B5: 1 | C5: DBC | D5: =COUNTIF(OnCallList,C5) -> 23 | E5: =D5-$D$26 -> 0.125 | I5: 1 | J5: 11 | K5: =VLOOKUP(J5,PartnerLookup,2) -> LDP | L5: 12 | M5: =VLOOKUP(L5,PartnerLookup,2) -> RJR | W5: =C5 -> DBC | X5: =COUNTIF(X$37:X$402,$C5) -> 3 | Y5: 3 | Z5: 5 | AA5: 3 | AB5: 3 | AC5: 3 | AD5: 3 | AE5: =SUM(X5:AA5) -> 14 | AG5: =52/$W$26*$I5 -> 3.4 | AH5: =(5*52)/$W$26*$I5 -> 16.8 | AJ5: =$W$27*I5 -> 3.4
B6: 2 | C6: PJC | D6: 25 | E6: 2.125 | I6: 1 | J6: 13 | K6: AJR | L6: 7 | M6: GBH | W6: PJC | X6: 3 | Y6: 4 | Z6: 4 | AA6: 3 | AB6: 3 | AC6: 4 | AD6: 4 | AE6: =SUM(X6:AA6) -> 14 | AG6: =52/$W$26*I6 -> 3.4 | AH6: =(5*52)/$W$26*$I6 -> 16.8 | AJ6: =$W$27*I6 -> 3.4
B7: 3 | C7: RAC | D7: 23 | E7: 0.125 | I7: 1 | J7: 9 | K7: DJM | L7: 1 | M7: DBC | W7: RAC | X7: 4 | Y7: 5 | Z7: 2 | AA7: 3 | AB7: 3 | AC7: 3 | AD7: 3 | AE7: 14 | AG7: 3.4 | AH7: 16.8 | AJ7: 3.4
B8: 4 | C8: REC | D8: 19 | E8: -3.875 | I8: 0.75 | J8: 2 | K8: PJC | L8: 14 | M8: MFS | W8: REC | X8: 3 | Y8: 2 | Z8: 2 | AA8: 3 | AB8: 3 | AC8: 3 | AD8: 3 | AE8: 10 | AG8: 2.5 | AH8: 12.6 | AJ8: 2.5
B9: 5 | C9: JGE | D9: 23 | E9: 0.125 | I9: 1 | J9: 7 | K9: GBH | L9: 13 | M9: AJR | W9: JGE | X9: 4 | Y9: 4 | Z9: 3 | AA9: 3 | AB9: 3 | AC9: 3 | AD9: 3 | AE9: 14 | AG9: 3.4 | AH9: 16.8 | AJ9: 3.4
B10: 6 | C10: SPF | D10: 23 | E10: 0.125 | I10: 1 | J10: 8 | K10: GAH | L10: 8 | M10: GAH | W10: SPF | X10: 2 | Y10: 5 | Z10: 4 | AA10: 3 | AB10: 3 | AC10: 3 | AD10: 3 | AE10: 14 | AG10: 3.4 | AH10: 16.8 | AJ10: 3.4
B11: 7 | C11: GBH | D11: 19 | E11: -3.875 | H11: Y | I11: 0.75 | J11: 4 | K11: REC | L11: 9 | M11: DJM | W11: GBH | X11: 3 | Y11: 1 | Z11: 2 | AA11: 4 | AB11: 3 | AC11: 3 | AD11: 3 | AE11: 10 | AG11: 2.5 | AH11: 12.6 | AJ11: 2.5
B12: 8 | C12: GAH | D12: 24 | E12: 1.125 | I12: 1 | J12: 5 | K12: JGE | L12: 5 | M12: JGE | W12: GAH | X12: 2 | Y12: 3 | Z12: 5 | AA12: 4 | AB12: 4 | AC12: 3 | AD12: 3 | AE12: 14 | AG12: 3.4 | AH12: 16.8 | AJ12: 3.4
B13: 9 | C13: DJM | D13: 23 | E13: 0.125 | I13: 1 | J13: 6 | K13: SPF | L13: 6 | M13: SPF | W13: DJM | X13: 8 | Y13: 0 | Z13: 0 | AA13: 4 | AB13: 3 | AC13: 4 | AD13: 4 | AE13: 12 | AG13: 3.4 | AH13: 16.8 | AJ13: 3.4
B14: 10 | C14: CJM | D14: 24 | E14: 1.125 | H14: Y | I14: 1 | J14: 14 | K14: MFS | L14: 2 | M14: PJC | W14: CJM | X14: 2 | Y14: 4 | Z14: 4 | AA14: 4 | AB14: 4 | AC14: 3 | AD14: 3 | AE14: 14 | AG14: 3.4 | AH14: 16.8 | AJ14: 3.4
B15: 11 | C15: LDP | D15: 23 | E15: 0.125 | I15: 1 | J15: 15 | K15: PRS | L15: 4 | M15: REC | W15: LDP | X15: =COUNTIF(X$37:X$402,$C15) -> 3 | Y15: 2 | Z15: 4 | AA15: 3 | AB15: 3 | AC15: 4 | AD15: 4 | AE15: 12 | AG15: 3.4 | AH15: 16.8 | AJ15: 3.4
B16: 12 | C16: RJR | D16: 24 | E16: 1.125 | I16: 1 | J16: 3 | K16: RAC | L16: 15 | M16: PRS | W16: RJR | X16: 4 | Y16: 4 | Z16: 3 | AA16: 3 | AB16: 4 | AC16: 3 | AD16: 3 | AE16: 14 | AG16: 3.4 | AH16: 16.8 | AJ16: 3.4
B17: 13 | C17: AJR | D17: 23 | E17: 0.125 | H17: Y | I17: 1 | J17: 12 | K17: RJR | L17: 3 | M17: RAC | W17: AJR | X17: 1 | Y17: 6 | Z17: 3 | AA17: 3 | AB17: 4 | AC17: 3 | AD17: 3 | AE17: 13 | AG17: 3.4 | AH17: 16.8 | AJ17: 3.4
B18: 14 | C18: MFS | D18: 23 | E18: 0.125 | I18: 1 | J18: 1 | K18: DBC | L18: 11 | M18: LDP | W18: MFS | X18: 3 | Y18: 4 | Z18: 4 | AA18: 3 | AB18: 3 | AC18: 3 | AD18: 3 | AE18: 14 | AG18: 3.4 | AH18: 16.8 | AJ18: 3.4
B19: 15 | C19: PRS | D19: 23 | E19: 0.125 | H19: Y | I19: 1 | J19: 16 | K19: HLT | L19: 10 | M19: CJM | W19: PRS | X19: 4 | Y19: 3 | Z19: 4 | AA19: 3 | AB19: 3 | AC19: 3 | AD19: 3 | AE19: 14 | AG19: 3.4 | AH19: 16.8 | AJ19: 3.4
B20: 16 | C20: HLT | D20: 24 | E20: 1.125 | I20: 1 | J20: 10 | K20: CJM | L20: 16 | M20: HLT | W20: HLT | X20: 3 | Y20: 2 | Z20: 3 | AA20: 4 | AB20: 4 | AC20: 4 | AD20: 4 | AE20: 12 | AG20: 3.4 | AH20: 16.8 | AJ20: 3.4
B21: 17 | D21: 0 | W21: 0 | X21: 0 | Y21: 0 | Z21: 0 | AA21: 0 | AB21: 0 | AC21: 0 | AD21: 0 | AE21: 0 | AG21: 0.0 | AH21: 0.0 | AJ21: 0.0
B22: 18 | D22: 0 | W22: 0 | X22: 0 | Y22: 0 | Z22: 0 | AA22: 0 | AB22: 0 | AC22: 0 | AD22: 0 | AE22: 0 | AG22: 0.0 | AH22: 0.0 | AJ22: 0.0
B23: 19 | D23: 0 | E23: -22.875 | W23: 0 | X23: 0 | Y23: 0 | Z23: 0 | AA23: 0 | AB23: 0 | AC23: 0 | AD23: 0 | AE23: 0 | AG23: 0.0 | AH23: 0.0 | AJ23: 0.0
B24: 20 | D24: 0 | E24: -22.875 | W24: 0 | X24: 0 | Y24: 0 | Z24: 0 | AA24: 0 | AB24: 0 | AC24: 0 | AD24: 0 | AE24: 0 | AG24: 0.0 | AH24: 0.0 | AJ24: 0.0
B25: TOTAL | C25: =20-COUNTBLANK(C5:C24) -> 16 | D25: =SUM(D5:D24) -> 366 | H25: =20-COUNTBLANK(H5:H24) -> 4 | I25: =SUM(I5:I24) -> 15.5
B26: AVG | D26: =D25/C25 -> 22.9 | W26: =I25 -> 15.5 | X26: Effective number of fullshare partners
A27: This spreadsheet generates a random roster for on-call nights for a new year | W27: =52/W26 -> 3.4 | X27: Average number of each night that should be done per EFT
A28: Monday to Saturday oncalls are random although on partner can't work two nights less than 7 days apart
B29: DAY | C29: ON | W29: DayOfWeek
A30: =A31-1 -> 2018-01-25 | B30: =A30 -> 2018-01-25 | C30: =VLOOKUP(A30,PreYear,2) -> GBH
A31: 2018-01-26 | B31: 2018-01-26 | C31: JGE
A32: 2018-01-27 | B32: 2018-01-27 | C32: AJR
A33: 2018-01-28 | B33: 2018-01-28 | C33: AJR
A34: 2018-01-29 | B34: 2018-01-29 | C34: DBC
A35: 2018-01-30 | B35: 2018-01-30 | C35: RJR
A36: =A37-1 -> 2018-01-31 | B36: 2018-01-31 | C36: AJR
A37: =DATEVALUE("1/2/"&CurrentYear) -> 2018-02-01 | B37: =A37 -> 2018-02-01 | C37: GAH | W37: =WEEKDAY(A37,2) -> 4 | X37: =IF($W37=X$3,$C37,"") ->  | Y37: =IF($W37=Y$3,$C37,"") ->  | AA37: GAH
A38: =A37+1 -> 2018-02-02 | B38: =A38 -> 2018-02-02 | C38: HLT | W38: =WEEKDAY(A38,2) -> 5 | X38: =IF($W38=X$3,$C38,"") ->  | AB38: HLT
A39: =A38+1 -> 2018-02-03 | B39: 2018-02-03 | C39: LDP | W39: 6 | AC39: LDP
A40: 2018-02-04 | B40: 2018-02-04 | C40: LDP | W40: 7 | AD40: LDP
A41: 2018-02-05 | B41: 2018-02-05 | C41: DJM | W41: 1 | X41: DJM
A42: 2018-02-06 | B42: 2018-02-06 | C42: CJM | W42: 2 | Y42: CJM
A43: 2018-02-07 | B43: 2018-02-07 | C43: RJR | W43: 3 | Z43: RJR
A44: 2018-02-08 | B44: 2018-02-08 | C44: MFS | W44: 4 | AA44: MFS
A45: 2018-02-09 | B45: 2018-02-09 | C45: AJR | W45: 5 | AB45: AJR
A46: 2018-02-10 | B46: 2018-02-10 | C46: AJR | W46: 6 | AC46: AJR
A47: 2018-02-11 | B47: 2018-02-11 | C47: AJR | W47: 7 | AD47: AJR
A48: 2018-02-12 | B48: 2018-02-12 | C48: LDP | K48: Proximity Score | O48: 14 | W48: 1 | X48: LDP
A49: 2018-02-13 | B49: 2018-02-13 | C49: MFS | K49: Score represents number of proximity conflicts | W49: 2 | Y49: MFS
A50: 2018-02-14 | B50: 2018-02-14 | C50: PRS | K50: 35 or under is a good score | W50: 3 | Z50: PRS
A51: 2018-02-15 | B51: 2018-02-15 | C51: HLT | W51: 4 | AA51: HLT
A52: 2018-02-16 | B52: 2018-02-16 | C52: CJM | W52: 5 | AB52: CJM
A53: 2018-02-17 | B53: 2018-02-17 | C53: DJM | W53: 6 | AC53: DJM
A54: 2018-02-18 | B54: 2018-02-18 | C54: DJM | W54: 7 | AD54: DJM
A55: 2018-02-19 | B55: 2018-02-19 | C55: SPF | F55: Do manual correction of proximity errors on this part of output | W55: 1 | X55: SPF
A56: 2018-02-20 | B56: 2018-02-20 | C56: AJR | F56: Repeatedly push Proximity Check until no or acceptable errors | W56: 2 | Y56: AJR
A57: 2018-02-21 | B57: 2018-02-21 | C57: DBC | W57: 3 | Z57: DBC
A58: 2018-02-22 | B58: 2018-02-22 | C58: GBH | F58: Warning; checks for 3day weekends but not 75% oncall | W58: 4 | AA58: GBH
A59: 2018-02-23 | B59: 2018-02-23 | C59: GAH | F59: Proximity check gap is different for different days | W59: 5 | AB59: GAH
A60: 2018-02-24 | B60: 2018-02-24 | C60: JGE | W60: 6 | AC60: JGE
A61: 2018-02-25 | B61: 2018-02-25 | C61: JGE | W61: 7 | AD61: JGE
A62: 2018-02-26 | B62: 2018-02-26 | C62: HLT | W62: 1 | X62: HLT
A63: 2018-02-27 | B63: 2018-02-27 | C63: RJR | W63: 2 | Y63: RJR
A64: 2018-02-28 | B64: 2018-02-28 | C64: CJM | W64: 3 | Z64: CJM
A65: 2018-03-01 | B65: 2018-03-01 | C65: SPF | W65: 4 | AA65: SPF
A66: 2018-03-02 | B66: 2018-03-02 | C66: GBH | W66: 5 | AB66: GBH
A67: 2018-03-03 | B67: 2018-03-03 | C67: GBH | W67: 6 | AC67: GBH
A68: 2018-03-04 | B68: 2018-03-04 | C68: GBH | W68: 7 | AD68: GBH
A69: 2018-03-05 | B69: 2018-03-05 | C69: PRS | W69: 1 | X69: PRS
A70: 2018-03-06 | B70: 2018-03-06 | C70: CJM | W70: 2 | Y70: CJM
A71: 2018-03-07 | B71: 2018-03-07 | C71: AJR | W71: 3 | Z71: AJR
A72: 2018-03-08 | B72: 2018-03-08 | C72: RAC | W72: 4 | AA72: RAC
A73: 2018-03-09 | B73: 2018-03-09 | C73: DBC | W73: 5 | AB73: DBC
A74: 2018-03-10 | B74: 2018-03-10 | C74: GAH | W74: 6 | AC74: GAH
A75: 2018-03-11 | B75: 2018-03-11 | C75: GAH | W75: 7 | AD75: GAH
A76: 2018-03-12 | B76: 2018-03-12 | C76: RJR | W76: 1 | X76: RJR
A77: 2018-03-13 | B77: 2018-03-13 | C77: SPF | W77: 2 | Y77: SPF
A78: 2018-03-14 | B78: 2018-03-14 | C78: JGE | W78: 3 | Z78: JGE
A79: 2018-03-15 | B79: 2018-03-15 | C79: MFS | W79: 4 | AA79: MFS
A80: 2018-03-16 | B80: 2018-03-16 | C80: PJC | W80: 5 | AB80: PJC
A81: 2018-03-17 | B81: 2018-03-17 | C81: REC | W81: 6 | AC81: REC
A82: 2018-03-18 | B82: 2018-03-18 | C82: REC | W82: 7 | AD82: REC
A83: 2018-03-19 | B83: 2018-03-19 | C83: AJR | W83: 1 | X83: AJR
A84: 2018-03-20 | B84: 2018-03-20 | C84: RAC | W84: 2 | Y84: RAC
A85: 2018-03-21 | B85: 2018-03-21 | C85: JGE | W85: 3 | Z85: JGE
A86: 2018-03-22 | B86: 2018-03-22 | C86: CJM | W86: 4 | AA86: CJM
A87: 2018-03-23 | B87: 2018-03-23 | C87: RJR | W87: 5 | Z87: =IF($W87=Z$3,$C87,"") ->  | AB87: RJR
A88: 2018-03-24 | B88: 2018-03-24 | C88: PJC | W88: 6 | X88: =IF($W88=X$3,$C88,"") ->  | AC88: PJC
A89: 2018-03-25 | B89: 2018-03-25 | C89: PJC | W89: 7 | AD89: PJC
A90: 2018-03-26 | B90: 2018-03-26 | C90: DBC | W90: 1 | X90: DBC
A91: 2018-03-27 | B91: 2018-03-27 | C91: RAC | W91: 2 | Y91: RAC
A92: 2018-03-28 | B92: 2018-03-28 | C92: LDP | W92: 3 | Z92: LDP
A93: 2018-03-29 | B93: 2018-03-29 | C93: AJR | W93: 4 | AA93: AJR
A94: 2018-03-30 | B94: 2018-03-30 | C94: PRS | W94: 5 | AB94: PRS
A95: 2018-03-31 | B95: 2018-03-31 | C95: SPF | W95: 6 | AC95: SPF
A96: 2018-04-01 | B96: 2018-04-01 | C96: SPF | W96: 7 | AD96: SPF
A97: 2018-04-02 | B97: 2018-04-02 | C97: HLT | W97: 1 | X97: HLT
A98: 2018-04-03 | B98: 2018-04-03 | C98: REC | W98: 2 | Y98: REC
A99: 2018-04-04 | B99: 2018-04-04 | C99: GAH | W99: 3 | Z99: GAH
A100: 2018-04-05 | B100: 2018-04-05 | C100: DJM | W100: 4 | AA100: DJM
A101: 2018-04-06 | B101: 2018-04-06 | C101: PJC | E101: Y | W101: 5 | AB101: PJC
A102: 2018-04-07 | B102: =A102 -> 2018-04-07 | C102: MFS | W102: =WEEKDAY(A102,2) -> 6 | AC102: MFS
A103: =A102+1 -> 2018-04-08 | B103: 2018-04-08 | C103: MFS | W103: 7 | AD103: MFS
A104: 2018-04-09 | B104: 2018-04-09 | C104: RAC | W104: 1 | X104: RAC
A105: 2018-04-10 | B105: 2018-04-10 | C105: SPF | W105: 2 | Y105: SPF
A106: 2018-04-11 | B106: 2018-04-11 | C106: PJC | W106: 3 | Z106: PJC
A107: 2018-04-12 | B107: 2018-04-12 | C107: JGE | W107: 4 | AA107: JGE
A108: 2018-04-13 | B108: 2018-04-13 | C108: PRS | W108: 5 | AB108: PRS
A109: 2018-04-14 | B109: 2018-04-14 | C109: PRS | W109: 6 | AC109: PRS
A110: 2018-04-15 | B110: 2018-04-15 | C110: PRS | W110: 7 | AD110: PRS
A111: 2018-04-16 | B111: 2018-04-16 | C111: REC | W111: 1 | X111: REC
A112: 2018-04-17 | B112: 2018-04-17 | C112: MFS | W112: 2 | Y112: MFS
A113: 2018-04-18 | B113: 2018-04-18 | C113: DBC | W113: 3 | Z113: DBC
A114: 2018-04-19 | B114: 2018-04-19 | C114: LDP | W114: 4 | AA114: LDP
A115: 2018-04-20 | B115: 2018-04-20 | C115: GAH | W115: 5 | AB115: GAH
A116: 2018-04-21 | B116: 2018-04-21 | C116: RAC | W116: 6 | AC116: RAC
A117: 2018-04-22 | B117: 2018-04-22 | C117: RAC | W117: 7 | AD117: RAC
A118: 2018-04-23 | B118: 2018-04-23 | C118: PRS | W118: 1 | X118: PRS
A119: 2018-04-24 | B119: 2018-04-24 | C119: PJC | W119: 2 | Y119: PJC
A120: 2018-04-25 | B120: 2018-04-25 | C120: REC | W120: 3 | Z120: REC
A121: 2018-04-26 | B121: 2018-04-26 | C121: RAC | W121: 4 | AA121: RAC
A122: 2018-04-27 | B122: 2018-04-27 | C122: DJM | W122: 5 | AB122: DJM
A123: 2018-04-28 | B123: 2018-04-28 | C123: RJR | W123: 6 | AC123: RJR
A124: 2018-04-29 | B124: 2018-04-29 | C124: RJR | W124: 7 | AD124: RJR
A125: 2018-04-30 | B125: 2018-04-30 | C125: DBC | W125: 1 | X125: DBC
A126: 2018-05-01 | B126: 2018-05-01 | C126: GAH | W126: 2 | Y126: GAH
A127: 2018-05-02 | B127: 2018-05-02 | C127: LDP | W127: 3 | Z127: LDP
A128: 2018-05-03 | B128: 2018-05-03 | C128: REC | W128: 4 | AA128: REC
A129: 2018-05-04 | B129: 2018-05-04 | C129: SPF | W129: 5 | AB129: SPF | AC129: =IF($W129=AC$3,$C129,"") -> 
A130: 2018-05-05 | B130: 2018-05-05 | C130: DBC | E130: Y | W130: 6 | AC130: DBC
A131: 2018-05-06 | B131: 2018-05-06 | C131: DBC | E131: Y | W131: 7 | AD131: DBC
A132: 2018-05-07 | B132: 2018-05-07 | C132: DJM | W132: 1 | X132: DJM
A133: 2018-05-08 | B133: 2018-05-08 | C133: JGE | W133: 2 | Y133: JGE
A134: 2018-05-09 | B134: 2018-05-09 | C134: PJC | W134: 3 | Z134: PJC
A135: 2018-05-10 | B135: 2018-05-10 | C135: GAH | W135: 4 | AA135: GAH
A136: 2018-05-11 | B136: 2018-05-11 | C136: RAC | W136: 5 | AB136: RAC
A137: 2018-05-12 | B137: 2018-05-12 | C137: HLT | W137: 6 | AC137: HLT
A138: 2018-05-13 | B138: 2018-05-13 | C138: HLT | W138: 7 | AD138: HLT
A139: 2018-05-14 | B139: 2018-05-14 | C139: PRS | W139: 1 | X139: PRS
A140: 2018-05-15 | B140: 2018-05-15 | C140: SPF | W140: 2 | Y140: SPF
A141: 2018-05-16 | B141: 2018-05-16 | C141: MFS | W141: 3 | Z141: MFS
A142: 2018-05-17 | B142: 2018-05-17 | C142: LDP | W142: 4 | AA142: LDP
A143: 2018-05-18 | B143: 2018-05-18 | C143: CJM | W143: 5 | AB143: CJM
A144: 2018-05-19 | B144: 2018-05-19 | C144: CJM | W144: 6 | AC144: CJM
A145: 2018-05-20 | B145: 2018-05-20 | C145: CJM | W145: 7 | AD145: CJM
A146: 2018-05-21 | B146: 2018-05-21 | C146: RJR | W146: 1 | X146: RJR
A147: 2018-05-22 | B147: 2018-05-22 | C147: HLT | W147: 2 | Y147: HLT
A148: 2018-05-23 | B148: 2018-05-23 | C148: DBC | W148: 3 | Z148: DBC
A149: 2018-05-24 | B149: 2018-05-24 | C149: GBH | W149: 4 | AA149: GBH
A150: 2018-05-25 | B150: 2018-05-25 | C150: REC | W150: 5 | AB150: REC
A151: 2018-05-26 | B151: 2018-05-26 | C151: LDP | W151: 6 | AC151: LDP
A152: 2018-05-27 | B152: 2018-05-27 | C152: LDP | W152: 7 | X152: =IF($W152=X$3,$C152,"") ->  | AD152: LDP
A153: 2018-05-28 | B153: 2018-05-28 | C153: GAH | W153: 1 | X153: GAH
A154: 2018-05-29 | B154: 2018-05-29 | C154: PJC | W154: 2 | Y154: PJC
A155: 2018-05-30 | B155: 2018-05-30 | C155: CJM | W155: 3 | Z155: CJM
A156: 2018-05-31 | B156: 2018-05-31 | C156: DJM | W156: 4 | AA156: DJM
A157: 2018-06-01 | B157: 2018-06-01 | C157: JGE | W157: 5 | AB157: JGE
A158: 2018-06-02 | B158: 2018-06-02 | C158: HLT | W158: 6 | AC158: HLT
A159: 2018-06-03 | B159: 2018-06-03 | C159: HLT | W159: 7 | AD159: HLT
A160: 2018-06-04 | B160: 2018-06-04 | C160: RAC | W160: 1 | X160: RAC
A161: 2018-06-05 | B161: 2018-06-05 | C161: PRS | W161: 2 | Y161: PRS
A162: 2018-06-06 | B162: 2018-06-06 | C162: SPF | W162: 3 | Z162: SPF
A163: 2018-06-07 | B163: 2018-06-07 | C163: MFS | W163: 4 | AA163: MFS
A164: 2018-06-08 | B164: 2018-06-08 | C164: DBC | W164: 5 | AB164: DBC
A165: 2018-06-09 | B165: 2018-06-09 | C165: DJM | W165: 6 | AC165: DJM
A166: 2018-06-10 | B166: =A166 -> 2018-06-10 | C166: DJM | W166: =WEEKDAY(A166,2) -> 7 | AD166: DJM
A167: =A166+1 -> 2018-06-11 | B167: 2018-06-11 | C167: JGE | W167: 1 | X167: JGE
A168: 2018-06-12 | B168: 2018-06-12 | C168: RJR | W168: 2 | Y168: RJR
A169: 2018-06-13 | B169: 2018-06-13 | C169: HLT | W169: 3 | Z169: HLT
A170: 2018-06-14 | B170: 2018-06-14 | C170: DBC | W170: 4 | AA170: DBC
A171: 2018-06-15 | B171: 2018-06-15 | C171: LDP | W171: 5 | AB171: LDP
A172: 2018-06-16 | B172: 2018-06-16 | C172: PJC | W172: 6 | Z172: =IF($W172=Z$3,$C172,"") ->  | AC172: PJC
A173: 2018-06-17 | B173: 2018-06-17 | C173: PJC | W173: 7 | AD173: PJC
A174: 2018-06-18 | B174: 2018-06-18 | C174: RJR | W174: 1 | X174: RJR
A175: 2018-06-19 | B175: 2018-06-19 | C175: AJR | W175: 2 | Y175: AJR
A176: 2018-06-20 | B176: 2018-06-20 | C176: GAH | W176: 3 | Z176: GAH
A177: 2018-06-21 | B177: 2018-06-21 | C177: CJM | W177: 4 | AA177: CJM
A178: 2018-06-22 | B178: 2018-06-22 | C178: GBH | W178: 5 | AB178: GBH
A179: 2018-06-23 | B179: 2018-06-23 | C179: GBH | W179: 6 | AC179: GBH
A180: 2018-06-24 | B180: 2018-06-24 | C180: GBH | W180: 7 | AD180: GBH
A181: 2018-06-25 | B181: 2018-06-25 | C181: PJC | W181: 1 | X181: PJC
A182: 2018-06-26 | B182: 2018-06-26 | C182: RAC | W182: 2 | Y182: RAC
A183: 2018-06-27 | B183: 2018-06-27 | C183: PRS | W183: 3 | Z183: PRS
A184: 2018-06-28 | B184: 2018-06-28 | C184: SPF | W184: 4 | AA184: SPF
A185: 2018-06-29 | B185: 2018-06-29 | C185: MFS | W185: 5 | AB185: MFS
A186: 2018-06-30 | B186: 2018-06-30 | C186: GAH | W186: 6 | AC186: GAH
A187: 2018-07-01 | B187: 2018-07-01 | C187: GAH | W187: 7 | AD187: GAH
A188: 2018-07-02 | B188: 2018-07-02 | C188: CJM | W188: 1 | X188: CJM
A189: 2018-07-03 | B189: 2018-07-03 | C189: JGE | W189: 2 | Y189: JGE
A190: 2018-07-04 | B190: 2018-07-04 | C190: RJR | W190: 3 | Z190: RJR
A191: 2018-07-05 | B191: 2018-07-05 | C191: HLT | W191: 4 | AA191: HLT
A192: 2018-07-06 | B192: 2018-07-06 | C192: DJM | W192: 5 | AB192: DJM
A193: 2018-07-07 | B193: 2018-07-07 | C193: REC | W193: 6 | AC193: REC
A194: 2018-07-08 | B194: 2018-07-08 | C194: REC | W194: 7 | AD194: REC
A195: 2018-07-09 | B195: 2018-07-09 | C195: LDP | W195: 1 | X195: LDP
A196: 2018-07-10 | B196: 2018-07-10 | C196: GAH | W196: 2 | Y196: GAH
A197: 2018-07-11 | B197: 2018-07-11 | C197: AJR | W197: 3 | Z197: AJR
A198: 2018-07-12 | B198: 2018-07-12 | C198: PJC | W198: 4 | AA198: PJC
A199: 2018-07-13 | B199: 2018-07-13 | C199: SPF | W199: 5 | AB199: SPF
A200: 2018-07-14 | B200: 2018-07-14 | C200: JGE | W200: 6 | AC200: JGE
... 224 more rows

Sheet Sheet1 (hidden)
A1: TUE | C1: FRI | E1: SAT | G1: SUN | J1: 2018-05-01 | K1: 2017-08-01 | L1: 2018-09-01 | M1: 2018-02-01
A2: WED | C2: SAT | E2: SUN | G2: MON
A3: THU | C3: SUN | E3: MON | G3: TUE
A4: FRI | C4: MON | E4: TUE | G4: WED | K4: 2018-05-01 | L4: 2018-05-01 | M4: 2018-05-01
A5: SAT | C5: TUE | E5: WED | G5: THU | I5: font | J5: bold | K5: FALSE
A6: SUN | C6: WED | E6: THU | G6: FRI | J6: colorindex | K6: 2
A7: MON | C7: THU | E7: FRI | G7: SAT
A8: TUE | C8: FRI | E8: SAT | G8: SUN
A9: WED | C9: SAT | E9: SUN | G9: MON
A10: THU | C10: SUN | E10: MON | G10: TUE | I10: interior | J10: ColorIndex | K10: 5 | L10: 5 | M10: 16
A11: FRI | C11: MON | E11: TUE | G11: WED | J11: pattern | K11: xlPatternUp | L11: xlPatternSolid | M11: 1
A12: SAT | C12: TUE | E12: WED | G12: THU | J12: patternColor | K12: 255 | L12: 0 | P12: pattern
A13: SUN | C13: WED | E13: THU | G13: FRI | J13: PatternColorIndex | K13: 3 | L13: -4105 | M13: -4105 | P13: Name | Q13: Value | R13: Description
A14: MON | C14: THU | E14: FRI | G14: SAT | P14: xlPatternAutomatic | Q14: -4105 | R14: Excel controls the pattern.
A15: TUE | C15: FRI | E15: SAT | G15: SUN | P15: xlPatternChecker | Q15: 9 | R15: Checkerboard.
J16: normal | K16: pre/post | L16: p/hol | M16: today | P16: xlPatternCrissCross | Q16: 16 | R16: Criss-cross lines.
J17: 2018-10-01 | K17: =J17+1 -> 2018-10-02 | L17: =K17+1 -> 2018-10-03 | M17: =L17+1 -> 2018-10-04 | P17: xlPatternDown | Q17: -4121 | R17: Dark diagonal lines running from the upper left to the lower right.
P18: xlPatternGray16 | Q18: 17 | R18: 16% gray.
P19: xlPatternGray25 | Q19: -4124 | R19: 25% gray.
P20: xlPatternGray50 | Q20: -4125 | R20: 50% gray.
P21: xlPatternGray75 | Q21: -4126 | R21: 75% gray.
A22: 1 | B22: =INDEX("MainRoster",3,1) ->  | P22: xlPatternGray8 | Q22: 18 | R22: 8% gray.
A23: 2 | P23: xlPatternGrid | Q23: 15 | R23: Grid.
A24: 3 | P24: xlPatternHorizontal | Q24: -4128 | R24: Dark horizontal lines.
A25: 4 | P25: xlPatternLightDown | Q25: 13 | R25: Light diagonal lines running from the upper left to the lower right.
P26: xlPatternLightHorizontal | Q26: 11 | R26: Light horizontal lines.
P27: xlPatternLightUp | Q27: 14 | R27: Light diagonal lines running from the lower left to the upper right.
P28: xlPatternLightVertical | Q28: 12 | R28: Light vertical bars.
P29: xlPatternNone | Q29: -4142 | R29: No pattern.
P30: xlPatternSemiGray75 | Q30: 10 | R30: 75% dark moir?.
P31: xlPatternSolid | Q31: 1 | R31: Solid color.
P32: xlPatternUp | Q32: -4162 | R32: Dark diagonal lines running from the lower left to the upper right.
P33: xlPatternVertical | Q33: -4166 | R33: Dark vertical bars.
